Workbook

Sheet Help
A1: Help! Nate's English/BigTalk Flash Cards on a Spreadsheet
H4: Return to Drill
A5: Start-up: | H5: Return to Drill
B6: Open the BigTalk_Flash.xls spreadsheet in Excel.
B7: Click the "Start" button to initialize scoring after first opening spreadsheet.
B8: Enable Macros, if your computer requests.
B9: Click on the tab Drill (if it doesn't open on that tab).
B10: Change the "Zoom" percentage on the Excel standard toolbar such that the red borders show.
B11: Turn off cursor movement after an entry and autocomplete:
C12: 1) Click on Excel
C13: 2) Click on Preferences
C14: 3) Click on Edit
C15: 4) Uncheck the box for: Move selection after RETURN
C16: 5) Uncheck the bos for: Autocomplete for cell values
A33: Use: | H33: Return to Drill
B34: 1) Click on the "New Try..." button, or Hold down control and type x (Ctrl-x)
C35: A random selection is made from the range of your chosen vocabulary list.
B36: 2) Type in your answer
C37: The cursor will be in cell C7.
C38: When you hit return, your answer is evaluated as either: "Cool!" or "Bad News!"
C39: (or the equivalent)
C40: Case is not evaluated. Spaces and punctuation are compared.
C41: Try again: The answer appears after you have typed at least one letter and hit the return.
E42: You may also hit the "Show Answer" button to see the answer.
E43: You may practice the correct answer any number of times.
B44: 3) Get a new word/phrase
C45: Click on the "New Try" button or do a control-x again!
A60: Change the answer from a Word to a Definition and back: | I60: Return to Drill
B61: 1) Click on the "Change, List, Target, or Range" button
B62: 2) Click on the target button for the target (Word or Definition) you would like to guess.
A84: Symbol Codes: | H84: Return to Drill
B85: To enter pronunciation symbols into column E, "meaning hints," type the code for the symbol
C86: shown in the top row of columns B and C. Hit return and then type ctrl-Z to change the code to the symbol.
A116: Compliments & Insults | H116: Return to Drill
B117: Changing a compliment or an insult:
E118: Stay on the Drill tab.
D119: 1) Turn off protection. (Click on: Tools, Protection, Unprotect Sheet, and type in password.)
D120: 2) Find the compliment in column B or the insult in column C starting in row 60 of the Drill tab.
D121: 3) Retype the cell.
D122: 4) Turn on protection. (Click on: Tools, Protection, Protect Sheet, and type password twice.)
E123: (On the pulldown you should make sure to keep "Select locked cells" and "Select
F124: unlocked cells" checked.)
B126: Adding a compliment or an insult:
E127: Stay on the Drill tab.
D128: 1) Turn off protection. (See above.)
D129: 2) Copy the last number next to the last compliment/insult pairs in the A column.
D130: 3) Paste the number into the next cell down in column A.
D131: 4) In column B of that new row, type in the compliment and in column C, the insult.
E132: (Compliments and insults must be put in pairs.)
D133: 5) Extend the named area, GoodBad, to cover the new pairs.
E134: A) Selct the current area by clicking on F5.
E135: B) Extend the area by holding down on the shift key and clicking on the C column
F136: of the new last row.
E137: C) Delete the old area by clicking Insert, Name, Define, (scroll down to) BadGood,
F138: Delete, OK.
E139: D) Add the new area (still highlighted) by clicking, Insert, Name, Define.
F140: Then type in BadGood.
F141: Then click on Add, OK.
D142: 6) Change cell C58 to the new number of lines (the last number for a line in column A).
D143: 7) Turn on protection.
A149: Change vocabulary set (the list or the tab) or range: | I149: Return to Drill
B150: 1) Click on the "Change List, Target, or Range" button
B151: 2) Click on your choice of a vocabulary set button (like "Set C")
B152: 3) Choose a range of the vocabulary--a subset of the words on that tab
C153: Leave these cells blank (E7 and E8) under Enter Range Below: (blank = all)
D154: to use all words on the tab.
C155: Type in a range to get a limited drill selection
D156: (Start at: 100 End at: 120 picks only from words 100 to 120).
B157: 4) Click on the "Return to Drill" button to continue
A174: Adding words: | H174: Return to Drill
B175: Chose vocabulary
C176: ="Chose one of the five vocabulary tabs: "&Drill!G19&", "&Drill!G20&", "&Drill!G21&", "&Drill!G22&", "&Drill!G23&"." -> Chose one of the five vocabulary tabs: All Words, Best, Specialized, Set B, Set C.
B177: Find last words and add at end
C178: Do not overtype columns A, F, G, or H.
D179: ="Type "&Drill!M3&" into column B and "&Drill!M4&" into column C." -> Type Word into column B and Meaning into column C.
C180: Additions must go immediately after the last filled-in rows.
D181: The program does not look past the first blank it comes to!!!
C182: The program is initialized for up to 3,000 translations per tab (15,000 total).
C183: ="Add hints and comments ("&Drill!M3&" hints in column D; "&Drill!M4&" hints in column E)." -> Add hints and comments (Word hints in column D; Meaning hints in column E).
D184: Pin down ambiguous possibilities. Add parts of speech or any other information.
C185: You may remove a translation by overtyping it with a new definition.
C186: You may also copy and paste over a group of rows from columns B to E.
D187: Do not use the row Delete or Cut commands
E188: unless you know how to fix columns A and F, G and H!
B205: To correct words | H205: Return to Drill
C206: Find the row number of the incorrect definition listed below your entry.
C207: Click on the tab for the current set of words.
C208: Go down to the problem row as listed in column A (not the spreadsheet row numbers).
C209: Overtype the offending cell.
C210: If you need accented characters, use the symbol codes, finish the cell, hit return, and
D211: type Ctrl-x.
A229: Adding new vocabularies: | H229: Return to Drill
B230: You may remove the translations or any unwanted vocabularies
D231: by clearing the contents of the vocabulary area.
C232: Select the vocabulary tab that you wish to renew.
C233: Click on the first definition cell (B7).
C234: Hold down on shift and click on the last definition cell at column E
D235: (or go to the end cell (E3000), using the side scrolls to get there.
D236: This should highlight the entire filled vocabulary area.
E237: With the cursor over the last cell, right click to get a menu and
F238: click on Clear Contents.
B239: You may now start at Row 7 entering new words and meanings.
A264: Scoring: | H264: Return to Drill
B265: Every time you hit Ctrl-x or the "New Try.." button to get a new word or phrase,
C266: Challenges increases by one.
B267: In order to increase your successes score, you must get the answer right on the first try.
B268: Your challenges, successes and score are saved when you save.
B269: The "Reset Score" button sets challenges, successes and score to zero.
B270: The "Scoring On/Off" button allows you to turn on or off the scoring.
C271: When scoring is turned off, an automatic "Reset Score" is done.
A294: Weights: | H294: Return to Drill
B295: Frequency weighting increments are set using the up/down toggle. Use this toggle when
C296: you are confident that you have learned a word or phrase or when you want to see
C297: the word or phrase more often.
D298: Increasing the Frequency Weight increases the probability of the word appearing.
D299: Decreasing it all the way to -100% prevents the word from appearing at all.
D300: The weights are stored in column G of the vocabulary lists.
D301: (The only way to remove a -100% is to manually change column G.)
A326: Protection | H326: Return to Drill
D327: 1) To turn off protection.
F328: Click on:
G329: Tools
G330: Protection
G331: Unprotect Sheet
G332: [Type password] (The initial password is | L332: nate | N332: -- store yours here too!)
D333: 2) To turn on protection.
F334: Click on:
G335: Tools
G336: Protection
G337: Protect Sheet
G338: [Type your password, twice]
E339: (On the pulldown you should make sure to keep "Select locked cells" and "Select
F340: unlocked cells" checked.)
A359: For the teacher: | H359: Return to Drill
B360: You may create your own vocabulary tabs
D361: and have students cut and paste these over the ones that come with the product.
B362: Most students these days have home computers with Microsoft Excel © and e-mail.
C363: A copy of a new vocabulary could be attached to an e-mail and sent to them.
B364: The vocabulary tab may be sent as a separate spreadsheet.
C365: After saving the attachment, the student may open it
D366: and click the very upper left corner (left of A, above 1) to highlight the entire sheet.
D367: Then the student should copy the sheet.
D368: Then the student should open BigTalk Flash.
D369: Then the student should select the tab that you would like them to replace
J370: (say, Set B).
D371: The student should open this tab and highlight cell A1.
D372: The new sheet may then be pasted directly over the entire tab.
D373: The student should save this new BigTalk Flash.
A382: Sharing: | H382: Return to Drill
B383: If you or your students create a useful vocabulary,
C384: for example, if you have entered in order the words for a particular textbook,
D385: or the obscure words of a novel,
C386: send the vocabulary to me,
C387: and I will post it on the www.dickmeyerconsulting.com website as a free download for others.
A408: Tips: | H408: Return to Drill
B409: Limit your range
C410: Set a short range to learn a limited set of words at a time.
C411: You can begin with the range 1 to 20 or 30, for example.
C412: When you are scoring well, move to the next 20 or 30.
C413: Return to earlier sets often to retain your learning.
B414: Easy start up | AA414: nate
C415: You can put an icon on your desktop by finding BigTalk Flash,
D416: using My Computer (clones only), where you have saved it.
D417: Right click on the BigTalk Flash icon when you have found it
E418: and click on "Create Shortcut."
E419: Use your mouse to drag the shortcut icon to your desktop.
B420: When to save
C421: Save every time you enter new vocabulary words. Save at the end of a session.
B422: Screen size
C423: Different size monitors show different amounts of the Drill tab.
C424: You should change the %s in the zoom box of the Standard Toolbar
D425: until cell E23 fits into the lower right corner of the screen.
B426: Backing up
C427: After adding vocabulary, always save the spreadsheet on a web drive,
D428: or "thumb drive" (any memory away from the hard disk).
A433: Other languages: | H433: Return to Drill
B434: By changing some of the formulas, this spreadsheet can be adapted to other languages
C435: based on the roman alphabet, but having characters not found on American keyboards.
B436: English/French, English/Spanish, English/Persian, English/Italian, and English/Chinese (Pinyin) versions are also available.
C437: If you would like me to add another language,
D438: please send me the characters that I would have to install as translations,
E439: and sample translations.
I443: © Nathan Dickmeyer, 2023

Sheet Drill
B1: Nate's English Vocabulary Drill Program | G1: Don't lock | L1: Safe | M1: 0
M3: =U12 -> Word
M4: =U13 -> Meaning
A5: Need Help? | M5: Character: | O5: ə | P5: ā | Q5: ē | R5: ī | S5: ō | T5: ä | U5: ô | V5: ū | W5: ŭ | X5: ə | Y5: ā | Z5: ē | AA5: ī | AB5: ō | AC5: ä | AD5: ô | AE5: ū | AF5: ŭ | AG5: ə | AH5: ā | AI5: ē | AJ5: ī | AK5: ō | AL5: ä | AM5: ô | AN5: ū | AO5: ŭ | AP5: ə | AQ5: ā | AR5: ē | AS5: ī | AT5: ō | AU5: ä | AV5: ô | AW5: ū | AX5: ŭ | AY5: û | AZ5: û | BA5: û | BB5: û | BC5: â | BD5: â | BE5: â | BF5: â
A6: Run cursor | M6: Code: | O6: 1 | P6: 2 | Q6: 3 | R6: 4 | S6: 5 | T6: 6 | U6: 7 | V6: 8 | W6: 9 | X6: 1 | Y6: 2 | Z6: 3 | AA6: 4 | AB6: 5 | AC6: 6 | AD6: 7 | AE6: 8 | AF6: 9 | AG6: 1 | AH6: 2 | AI6: 3 | AJ6: 4 | AK6: 5 | AL6: 6 | AM6: 7 | AN6: 8 | AO6: 9 | AP6: 1 | AQ6: 2 | AR6: 3 | AS6: 4 | AT6: 5 | AU6: 6 | AV6: 7 | AW6: 8 | AX6: 9 | AY6: 0 | AZ6: 0 | BA6: 0 | BB6: 0 | BC6: ` | BD6: ` | BE6: ` | BF6: `
A7: over cell. | B7: Translate this: | C7: Type answer below: | D7: Correct answer: | L7: Answer row | M7: Step trans: | N7: =C8 -> 0 | O7: =IF(ISERR(FIND(O6,N7)),N7,LEFT(N7,FIND(O6,N7)-1)&O5&MID(N7,FIND(O6,N7)+1,LEN(N7))) -> 0 | P7: 0 | Q7: 0 | R7: 0 | S7: 0 | T7: 0 | U7: 0 | V7: 0 | W7: 0 | X7: 0 | Y7: 0 | Z7: 0 | AA7: 0 | AB7: 0 | AC7: 0 | AD7: 0 | AE7: 0 | AF7: 0 | AG7: 0 | AH7: 0 | AI7: 0 | AJ7: 0 | AK7: 0 | AL7: 0 | AM7: 0 | AN7: 0 | AO7: 0 | AP7: 0 | AQ7: 0 | AR7: 0 | AS7: 0 | AT7: 0 | AU7: 0 | AV7: 0 | AW7: 0 | AX7: 0 | AY7: û | AZ7: û | BA7: û | BB7: û | BC7: =IF(ISERR(FIND(BC6,BB7)),BB7,LEFT(BB7,FIND(BC6,BB7)-1)&BC5&MID(BB7,FIND(BC6,BB7)+1,LEN(BB7))) -> û | BD7: =IF(ISERR(FIND(BD6,BC7)),BC7,LEFT(BC7,FIND(BD6,BC7)-1)&BD5&MID(BC7,FIND(BD6,BC7)+1,LEN(BC7))) -> û | BE7: =IF(ISERR(FIND(BE6,BD7)),BD7,LEFT(BD7,FIND(BE6,BD7)-1)&BE5&MID(BD7,FIND(BE6,BD7)+1,LEN(BD7))) -> û | BF7: =IF(ISERR(FIND(BF6,BE7)),BE7,LEFT(BE7,FIND(BF6,BE7)-1)&BF5&MID(BE7,FIND(BF6,BE7)+1,LEN(BE7))) -> û
A8: Help Topics: | B8: =VLOOKUP(IF(C29>B34,1,C29),CHOOSE(P18,words,words1,words2,words3,words4),IF(C20=M4,2,3)) -> Southwestern US an irrigation ditch | D8: =IF(ISBLANK(C8),"",VLOOKUP(IF(C29>B34,1,C29),CHOOSE(P18,words,words1,words2,words3,words4),IF(C20=M4,3,2))) ->  | M8: W/char: | N8: =IF(N7=0,"",IF(AX7=0,"",AX7)) ->  | R8: Vocabulary
A9: Start_up | B9: =IF(ISBLANK(C7),"",IF(ISBLANK(VLOOKUP(C29,CHOOSE(P18,words,words1,words2,words3,words4),IF(C20=M4,5,4))),"",VLOOKUP(C29,CHOOSE(P18,words,words1,words2,words3,words4),IF(C20=M4,5,4)))) ->  | C9: =IF(C8=" ----","Ready!",IF(C8="","Ready!",IF(D8=C8," "&B59,C59))) -> Ready! | D9: =IF(D8="","",IF(ISBLANK(VLOOKUP(C29,CHOOSE(P18,words,words1,words2,words3,words4),IF(C20=M4,4,5))),"",VLOOKUP(C29,CHOOSE(P18,words,words1,words2,words3,words4),IF(C20=M4,4,5)))) ->  | L9: Ctrl-z row | M9: Step trans: | N9: r5fuger | O9: =IF(ISERR(FIND(O6,N9)),N9,LEFT(N9,FIND(O6,N9)-1)&O5&MID(N9,FIND(O6,N9)+1,LEN(N9))) -> r5fuger | P9: =IF(ISERR(FIND(P6,O9)),O9,LEFT(O9,FIND(P6,O9)-1)&P5&MID(O9,FIND(P6,O9)+1,LEN(O9))) -> r5fuger | Q9: r5fuger | R9: r5fuger | S9: rōfuger | T9: rōfuger | U9: rōfuger | V9: rōfuger | W9: rōfuger | X9: rōfuger | Y9: rōfuger | Z9: rōfuger | AA9: rōfuger | AB9: rōfuger | AC9: rōfuger | AD9: rōfuger | AE9: rōfuger | AF9: rōfuger | AG9: rōfuger | AH9: rōfuger | AI9: rōfuger | AJ9: rōfuger | AK9: rōfuger | AL9: rōfuger | AM9: rōfuger | AN9: rōfuger | AO9: rōfuger | AP9: rōfuger | AQ9: rōfuger | AR9: rōfuger | AS9: rōfuger | AT9: rōfuger | AU9: rōfuger | AV9: rōfuger | AW9: rōfuger | AX9: rōfuger
A10: Use | B10: Hint ^ | C10: ="Current word row: "&TEXT(C29,M1) -> Current word row: 5 | D10: Added info ^ . | M10: W/char: | N10: =IF(N9=0,"",IF(AX9=0,"",AX9)) -> rōfuger
A11: Change_List | B11: Challenges | C11: =IF(B12="","",IF(B12=0,"Score: " &0,"Score: "&ROUND(B14*100/B12,2)&"%")) -> Score: 0 | D11: Frequency Weighting Incremement (0% starting point, -100% = never) | G11: =10+INDIRECT("'"&B32&"'!R"&C29+6&"C6",FALSE)*10 -> 10 | L11: = | M11: ; | Q11: = | R11: ; | U11: Target Names
A12: Change_Range | B12: 0 | C12: =B32 -> All Words | D12: =(G12)*0.1-1 -> 0 | G12: 10 | M12: =O5&$L$11&O6&$M$11&P5&$L$11&P6&$M$11&Q5&$L$11&Q6&$M$11&R5&$L$11&R6&$M$11&S5&$L$11&S6 -> ə = 1; ā = 2; ē = 3; ī = 4; ō = 5 | Q12: =T5&$Q$11&T6&$R$11&U5&$Q$11&U6&$R$11&V5&$Q$11&V6&$R$11&W5&$Q$11&W6 -> ä = 6; ô = 7; ū = 8; ŭ = 9 | U12: Word | V12: Col. B heading
A13: Change_Target | B13: First try successes | C13: Scoring is: | D13: © Nathan Dickmeyer, 2023 | U13: Meaning | V13: Col. C heading
A14: Correct | B14: 0 | C14: On | G14: Tries
C15: 0 | G15: 0
A16: Add_Words | G16: ="1=Correct" -> 1=Correct
A17: Score | G17: =IF( C7="", 0,IF(D8=C8,1,0)) -> 1
A18: Weights | B18: ="Current list tab: "&B32 -> Current list tab: All Words | M18: words | N18: 1 | P18: =IF(ISERROR(MATCH(B32,sets,0)),1,MATCH(B32,sets,0)) -> 1
A19: Symbol_Codes | B19: ="Current range from: "&Select!E7 -> Current range from: 1 | C19: Now guessing: | G19: All Words | M19: words1 | N19: 2
A20: Insults | B20: =" to: "&Select!E8&" ("&INDIRECT("'"&B32&"'!R6C2",FALSE)&" max.)" -> to: 10 (841 max.) | C20: =Select!P8 -> Word | G20: Best | M20: words2 | N20: 3
A21: Protection | B21: This work is licensed under the Creative Commons Attribution 2.5 License. To view a copy of this license, visit: | D21: http://creativecommons.org/licenses/by/2.5/ | G21: Specialized | M21: words3 | N21: 4
B22: or send a letter to Creative Commons, 543 Howard Street, 5th Floor, San Francisco, California, 94105, USA | D22: Updated: 5/19/23 | G22: Set B | M22: words4 | N22: 5
G23: Set C | M23: words5 | N23: 6
B28: Random number | C28: =VLOOKUP(RAND(),CHOOSE(P18,probs,Probs1,probs2,probs3,probs4),2)+1 -> 7
B29: =B32 -> All Words | C29: 5
B32: =Select!R8 -> All Words
B33: Tab name, cleaned
B34: =INDIRECT("'"&B32&"'!R6C2",FALSE) -> 841
B35: Total in current tab
B58: Total number: | C58: 44
B59: =VLOOKUP(INT(RAND()*C58+1),goodBad,2) -> Gnarly! | C59: =VLOOKUP(INT(RAND()*C58+1),goodBad,3) -> Lacking Intelligence!
A60: 1 | B60: Cool! | C60: Not Smart! | D60: 1
A61: =A60+1 -> 2 | B61: Outstanding! | C61: Dumb! | D61: =D60+1 -> 2
A62: =A61+1 -> 3 | B62: Marvelous! | C62: Incorrect! | D62: =D61+1 -> 3
A63: 4 | B63: Groovy! | C63: Wrong! | D63: 4
A64: 5 | B64: Gnarly! | C64: Wrong! Wrong! | D64: 5
A65: 6 | B65: Brilliant! | C65: Wrong! Wrong! Wrong! | D65: 6
A66: 7 | B66: Bodacious! | C66: Try Again! | D66: 7
A67: 8 | B67: Stupendous! | C67: Whoops! | D67: 8
A68: 9 | B68: Incredible! | C68: You can do better! | D68: 9
A69: 10 | B69: Particularly Fine! | C69: Bad News! | D69: 10
A70: 11 | B70: Nice Job! | C70: Uhhhh... No! | D70: 11
A71: 12 | B71: Good Job! | C71: False! | D71: 12
A72: 13 | B72: Fine Work! | C72: Lies! All Lies! | D72: 13
A73: 14 | B73: You've done it! | C73: Not Good! | D73: 14
A74: 15 | B74: Mastermind! | C74: Not Correct! | D74: 15
A75: 16 | B75: Bent it like Becham! | C75: Not Right! | D75: 16
A76: 17 | B76: Totally! | C76: Next time, ask someone! | D76: 17
A77: 18 | B77: Totally Cool! | C77: Not even close! | D77: 18
A78: 19 | B78: Totally Like Cool! | C78: That stinks! | D78: 19
A79: 20 | B79: Undeniably Brilliant! | C79: Terrible! | D79: 20
A80: 21 | B80: Kick-ass! | C80: Give up! | D80: 21
A81: 22 | B81: You! You! You! | C81: Have mercy! | D81: 22
A82: 23 | B82: Home Run! | C82: Couch potatoe! | D82: 23
A83: 24 | B83: Spectacular! | C83: Not Smart! | D83: 24
A84: 25 | B84: Awesome! | C84: Hopeless! | D84: 25
A85: 26 | B85: Totally Awesome! | C85: Get a Brain! | D85: 26
A86: 27 | B86: Your Ma Loves You! | C86: Listen buddy... | D86: 27
A87: 28 | B87: Sophisticated! | C87: Duuuuhhh! | D87: 28
A88: 29 | B88: Like...Wow! | C88: Dumb! | D88: 29
A89: 30 | B89: Smashing! | C89: Mentally Unfit! | D89: 30
A90: 31 | B90: Killer! | C90: Bad Hands! | D90: 31
A91: 32 | B91: Lucky! | C91: Sick! | D91: 32
A92: 33 | B92: Great! | C92: Lacking Intelligence! | D92: 33
A93: 34 | B93: Excellent! | C93: Slipping! | D93: 34
A94: 35 | B94: Unbelievable! | C94: Tripped up! | D94: 35
A95: 36 | B95: Wicked! | C95: Bummer! | D95: 36
A96: 37 | B96: Awsome Wicked! | C96: Prehistoric! | D96: 37
A97: 38 | B97: Like Tough Wicked! | C97: Adults Only, Please! | D97: 38
A98: 39 | B98: Monster! | C98: Not you again!!! | D98: 39
A99: 40 | B99: Smokin'! | C99: Awful! Awful! Awful! | D99: 40
A100: 41 | B100: You Is Bad! | C100: Too bad! | D100: 41
A101: 42 | B101: Over The Top! | C101: So Sorry! | D101: 42
A102: 43 | B102: Wonderful! | C102: Yech! | D102: 43
A103: 44 | B103: Bangin'! | C103: You trippin'? | D103: 44

Sheet Select
D1: RESET TARGET, RANGE OR RESET WORD/PHRASE SET
D5: Enter range below | P5: =Drill!M3 -> Word
D7: Start at: | E7: 1 | G7: Current active tab | P7: =Drill!M4 -> Meaning
D8: End at: | E8: 10 | G8: =Drill!B32 -> All Words | O8: Active= | P8: Word | R8: All Words
E9: ="Total is now: "&INDIRECT("'"&Drill!B32&"'!R6C2",FALSE) -> Total is now: 841
C10: Click on tab name below for word or phrase set desired.
F11: Total in set | I11: TARGET
E12: =Drill!G19 -> All Words | F12: ='All Words'!B6 -> 841 | I12: =" Guess "&Drill!M3&" or "&Drill!M4&"?" -> Guess Word or Meaning?
E13: =Drill!G20 -> Best | F13: =Best!B6 -> 787 | I13: =P5 -> Word
E14: =Drill!G21 -> Specialized | F14: =Specialized!B6 -> 50 | I14: =P7 -> Meaning
E15: =Drill!G22 -> Set B | F15: ='Set B'!B6 -> 7 | I15: ="Current = "&P8 -> Current = Word
E16: =Drill!G23 -> Set C | F16: ='Set C'!B6 -> 7
C19: ="Reset all (tab: "&Drill!B32&")" -> Reset all (tab: All Words)
C20: Frequency Weighting Incremements
C21: To equal weights (0%)

Sheet All Words
A4: 2999 | B4: =[1]Drill!M12 -> â = `; ə = 1; ā = 2; ē = 3; ī = 4; ō = 5 | C4: =[1]Drill!Q12 -> ä = 6; ô = 7; ū = 8; ŭ = 9; û = 0 | H4: Range Sum
A5: =IF(ISNUMBER(Select!E7),IF(Select!E7>1,IF(Select!E7>A4,1,IF(Select!E8<=Select!E7,1,Select!E7)),1),1) -> 1 | B5: =Drill!M3 -> Word | C5: =Drill!M4 -> Meaning | D5: =Drill!M3&" Hints" -> Word Hints | E5: =Drill!M4&" Hints" -> Meaning Hints | F5: Delta | G5: Range Cum. | H5: =SUM(OFFSET(Adjusts,A5-1,0,A6-A5+1,1))+A6-A5+1 -> 10 | M5: =Drill!M5 -> Character: | N5: =Drill!N5 -> 0 | O5: =Drill!O5 -> ə | P5: =Drill!P5 -> ā | Q5: =Drill!Q5 -> ē | R5: =Drill!R5 -> ī | S5: =Drill!S5 -> ō | T5: =Drill!T5 -> ä | U5: =Drill!U5 -> ô | V5: =Drill!V5 -> ū | W5: =Drill!W5 -> ŭ | X5: =Drill!X5 -> ə | Y5: =Drill!Y5 -> ā | Z5: =Drill!Z5 -> ē | AA5: =Drill!AA5 -> ī | AB5: =Drill!AB5 -> ō | AC5: =Drill!AC5 -> ä | AD5: =Drill!AD5 -> ô | AE5: =Drill!AE5 -> ū | AF5: =Drill!AF5 -> ŭ | AG5: =Drill!AG5 -> ə | AH5: =Drill!AH5 -> ā | AI5: =Drill!AI5 -> ē | AJ5: =Drill!AJ5 -> ī | AK5: =Drill!AK5 -> ō | AL5: =Drill!AL5 -> ä | AM5: =Drill!AM5 -> ô | AN5: =Drill!AN5 -> ū | AO5: =Drill!AO5 -> ŭ | AP5: =Drill!AP5 -> ə | AQ5: =Drill!AQ5 -> ā | AR5: =Drill!AR5 -> ē | AS5: =Drill!AS5 -> ī | AT5: =Drill!AT5 -> ō | AU5: =Drill!AU5 -> ä | AV5: =Drill!AV5 -> ô | AW5: =Drill!AW5 -> ū | AX5: =Drill!AX5 -> ŭ
A6: =IF(ISNUMBER(Select!E8),IF(Select!E8>A4,B6,IF(Select!E8<=A5,B6,IF(Select!E8>B6,B6,Select!E8))),B6) -> 10 | B6: =A4-COUNTBLANK(B7:B3005) -> 841 | F6: Add to 100% | G6: 0 | H6: 0 | M6: =Drill!M6 -> Code: | N6: =Drill!N6 -> 0 | O6: =Drill!O6 -> 1 | P6: =Drill!P6 -> 2 | Q6: =Drill!Q6 -> 3 | R6: =Drill!R6 -> 4 | S6: =Drill!S6 -> 5 | T6: =Drill!T6 -> 6 | U6: =Drill!U6 -> 7 | V6: =Drill!V6 -> 8 | W6: =Drill!W6 -> 9 | X6: =Drill!X6 -> 1 | Y6: =Drill!Y6 -> 2 | Z6: =Drill!Z6 -> 3 | AA6: =Drill!AA6 -> 4 | AB6: =Drill!AB6 -> 5 | AC6: =Drill!AC6 -> 6 | AD6: =Drill!AD6 -> 7 | AE6: =Drill!AE6 -> 8 | AF6: =Drill!AF6 -> 9 | AG6: =Drill!AG6 -> 1 | AH6: =Drill!AH6 -> 2 | AI6: =Drill!AI6 -> 3 | AJ6: =Drill!AJ6 -> 4 | AK6: =Drill!AK6 -> 5 | AL6: =Drill!AL6 -> 6 | AM6: =Drill!AM6 -> 7 | AN6: =Drill!AN6 -> 8 | AO6: =Drill!AO6 -> 9 | AP6: =Drill!AP6 -> 1 | AQ6: =Drill!AQ6 -> 2 | AR6: =Drill!AR6 -> 3 | AS6: =Drill!AS6 -> 4 | AT6: =Drill!AT6 -> 5 | AU6: =Drill!AU6 -> 6 | AV6: =Drill!AV6 -> 7 | AW6: =Drill!AW6 -> 8 | AX6: =Drill!AX6 -> 9
A7: =1 -> 1 | B7: abattoir | C7: Slaughterhouse | F7: 0 | G7: =IF(OR($A$5>A7,A7>$A$6),0,(F7+1)/$H$5+G6) -> 0.1 | H7: =A7 -> 1
A8: =1+A7 -> 2 | B8: abrogate | C8: To abolish by formal or official means; to annul by an authoritiative act; repeal, to - a law | F8: 0 | G8: =IF(OR($A$5>A8,A8>$A$6),0,(F8+1)/$H$5+G7) -> 0.2 | H8: =A8 -> 2
A9: =1+A8 -> 3 | B9: ablate | C9: To remove or destroy especially by cutting, abrading, or evaporating | F9: 0 | G9: =IF(OR($A$5>A9,A9>$A$6),0,(F9+1)/$H$5+G8) -> 0.3 | H9: 3 | M9: =Drill!M9 -> Step trans: | N9: pan2 | O9: =IF(ISERR(FIND(O6,N9)),N9,LEFT(N9,FIND(O6,N9)-1)&O5&MID(N9,FIND(O6,N9)+1,LEN(N9))) -> pan2 | P9: =IF(ISERR(FIND(P6,O9)),O9,LEFT(O9,FIND(P6,O9)-1)&P5&MID(O9,FIND(P6,O9)+1,LEN(O9))) -> panā | Q9: panā | R9: panā | S9: panā | T9: panā | U9: panā | V9: panā | W9: panā | X9: panā | Y9: panā | Z9: panā | AA9: panā | AB9: panā | AC9: panā | AD9: panā | AE9: panā | AF9: panā | AG9: panā | AH9: panā | AI9: panā | AJ9: panā | AK9: panā | AL9: panā | AM9: panā | AN9: panā | AO9: panā | AP9: panā | AQ9: panā | AR9: panā | AS9: panā | AT9: panā | AU9: panā | AV9: panā | AW9: panā | AX9: panā
A10: 4 | B10: abnegate | C10: To refuse or deny oneself; to reject, renounce; to relinquish | F10: 0 | G10: =IF($A$5>A10,0,IF(A10>$A$6,1,(F10+1)/$H$5+G9)) -> 0.4 | H10: 4 | M10: =Drill!M10 -> W/char: | N10: =IF(N9=0,"",IF(AX9=0,"",AX9)) -> panā
A11: 5 | B11: acequia | C11: Southwestern US an irrigation ditch | E11: ə sā' kyə | F11: 0 | G11: =IF($A$5>A11,0,IF(A11>$A$6,1,(F11+1)/$H$5+G10)) -> 0.5 | H11: 5
A12: 6 | B12: acidulous | C12: 1. Slightly sour; 2. Sharp; caustic; 3. Moderately acid or tart | F12: 0 | G12: 0.6 | H12: 6
A13: 7 | B13: adamantine | C13: 1. Impenetrably or unyieldingly hard; 2. Utterly unyielding or firm in attitude or opinion; 3. Like a diamond in luster | F13: 0 | G13: 0.7 | H13: 7
A14: 8 | B14: adduce | C14: To give as a reason or proof, cite as an example | F14: 0 | G14: 0.8 | H14: 8
A15: 9 | B15: adipose | C15: Fatty; consisting of, resembling or having relation to fat: ---tissue | D15: adj. | F15: 0 | G15: 0.9 | H15: 9
A16: 10 | B16: adjure | C16: 1. To charge, bind, or command earnestly and solemnly, often under oath or the threat of a curse; 2. to entreat or request earnestly | F16: 0 | G16: 1 | H16: 10
A17: 11 | B17: adumbrate | C17: To outline in a shadowy way | F17: 0 | G17: 1 | H17: 11
A18: 12 | B18: adventitious | C18: Added from outside, accidental, not inherent | F18: 0 | G18: 1 | H18: 12
A19: 13 | B19: advowson | C19: in English law the right to name the holder of a church benefice - "owned the *** of a living" | E19: AD VOW' ZN | F19: 0 | G19: 1 | H19: 13
A20: 14 | B20: aedicule | C20: A small construction, as a shrine, imitating the form of a building | F20: 0 | G20: 1 | H20: 14
A21: 15 | B21: aegis | C21: 1. Shield or breastplate of a Greek god. 2. Protection, sponsorship | D21: n. | E21: ē jis | F21: 0 | G21: 1 | H21: 15
A22: 16 | B22: affective characteristics | C22: Propensities to respond in stable emotional patterns to demand in concrete social situations. | F22: 0 | G22: 1 | H22: 16
A23: 17 | B23: afflatus | C23: Inspiration - A divine impartation of knowledge or power, "A prophet without his ***." | D23: n. | F23: 0 | G23: 1 | H23: 17
A24: 18 | B24: agio | C24: a premium on money in exchange | F24: 0 | G24: 1 | H24: 18
A25: 19 | B25: agon | C25: 1. (in ancient Greece) a contest in which prizes were awarded in any number of events as athletics, dramatics, poetry, music and painting; 2. a formalized debate or argumentation, esp. in comedy, usually following the paragon and preceding the parabasis; 3. conflict, esp. between the protagonist and antagonist | E25: ag' ōn | F25: 0 | G25: 1 | H25: 19
A26: 20 | B26: ahimsa | C26: Hinduism. The principle of nonviolence: "...achieved through --." | D26: n. | E26: ə him' sä | F26: 0 | G26: 1 | H26: 20
A27: 21 | B27: aigrette | C27: A plume or tuft of feathers, esp. the back plume of a heron arranged as a head ornament | F27: 0 | G27: 1 | H27: 21
A28: 22 | B28: alembic | C28: a vessel with a beaked cap, used for distilling or anything that transforms, purifies or refines | F28: 0 | G28: 1 | H28: 22
A29: 23 | B29: alfresco | C29: Out-of-doors; open air | D29: adv. | F29: 0 | G29: 1 | H29: 23
A30: 24 | B30: aliquot | C30: "...only by violent force of numbers could they express their -- part." Latin-math. A part of a number that divides it evenly and leaves no remainder | F30: 0 | G30: 1 | H30: 24
A31: 25 | B31: allay | C31: To lay aside; pacify, appease, calm, alleviate, relieve, abate; mitigate, dilute, qualify | F31: 0 | G31: 1 | H31: 25
A32: 26 | B32: allometry | C32: The study of the size of the individual organs relative to the size of the whole body | F32: 0 | G32: 1 | H32: 26
A33: 27 | B33: amanuensis | C33: A person who takes dictation or copies something already written; secretary. "I his mere ***, am left to keep the institution functioning." | E33: ə man΄ yoo en' sis | F33: 0 | G33: 1 | H33: 27
A34: 28 | B34: ambit | C34: Circuit, compass 2. Bounds or limits 3. A sphere of action, influence or expression | D34: n. | F34: 0 | G34: 1 | H34: 28
A35: 29 | B35: amusia | C35: The inability to produce or comprehend music or musical sounds | F35: 0 | G35: 1 | H35: 29
A36: 30 | B36: anacoluthan | C36: Change from one grammatical construction to the next within the same sentence: "A man, young lady! Lady, such a man as all the world--why he's a man of wax!" | D36: Greek | F36: 0 | G36: 1 | H36: 30
A37: 31 | B37: anagoge | C37: Mystical interpretation, as of the Scriptures | D37: n. | F37: 0 | G37: 1 | H37: 31
A38: 32 | B38: anagogic | C38: In psychology relating to the moral or allegorical tendancies of the unconcisou (Jung) | D38: adj. | F38: 0 | G38: 1 | H38: 32
A39: 33 | B39: anamorphosis | C39: A drawing presenting a distorted image which appears in natural form under certain conditions as when viewed at a raking angle or reflected from a curved mirroir | F39: 0 | G39: 1 | H39: 33
A40: 34 | B40: anapestic | C40: Short syllables, followed by long | F40: 0 | G40: 1 | H40: 34
A41: 35 | B41: anathema | C41: Greatly detested, damned, banished, forbidden | F41: 0 | G41: 1 | H41: 35
A42: 36 | B42: anchorite | C42: A religious hermit - recluse | F42: 0 | G42: 1 | H42: 36
A43: 37 | B43: anent | C43: 1. In regard to, concerning; 2. Brit., also anenst: beside, in line with | D43: prep. | F43: 0 | G43: 1 | H43: 37
A44: 38 | B44: angst | C44: A feeling of dread, anxiety, anguish | D44: n. | E44: äŋkst | F44: 0 | G44: 1 | H44: 38
A45: 39 | B45: anility | C45: The state of being an old woman, infirm, weak | F45: 0 | G45: 1 | H45: 39
A46: 40 | B46: animadvert | C46: To comment critically or censure | D46: v.t. | F46: 0 | G46: 1 | H46: 40
A47: 41 | B47: animus | C47: An animating force, an intention, a grudge | F47: 0 | G47: 1 | H47: 41
A48: 42 | B48: anodyne | C48: "Found in religious hopes an --..." Greek: anything that relieves pain or soothes | F48: 0 | G48: 1 | H48: 42
A49: 43 | B49: anomie | C49: normlessness | D49: soc. | F49: 0 | G49: 1 | H49: 43
A50: 44 | B50: anthropocentric | C50: Man as central fact in the universe | F50: 0 | G50: 1 | H50: 44
A51: 45 | B51: antifon | C51: A hymn, psalm, etc. chanted or sung in responsive, alternating parts | D51: n. | F51: 0 | G51: 1 | H51: 45
A52: 46 | B52: antinomy | C52: opposition between one law and another; contradiction between two statements, both apparently obtained by correct reasoning | F52: 0 | G52: 1 | H52: 46
A53: 47 | B53: antiphonal | C53: Pertaining to verse or song changed or sung in response | D53: adj. | E53: an tif' ə nəl | F53: 0 | G53: 1 | H53: 47
A54: 48 | B54: antistrophe | C54: The repetition of words in reverse order; repetition of a word at the end of successive clauses | F54: 0 | G54: 1 | H54: 48
A55: 49 | B55: aphasia | C55: Impairment or loss of the faculty of using or understanding spoken or written language | F55: 0 | G55: 1 | H55: 49
A56: 50 | B56: apodictic | C56: Incontestable because demonstrated or demonstrable 2. Logic necessarily true or logically certain | D56: adj. | E56: ap' ə dik' tik | F56: 0 | G56: 1 | H56: 50
A57: 51 | B57: aposiopesis | C57: A sudden breaking off in the midst of a sentence, as if from inability or unwillingness to proceed | E57: ap' ə sī' ə pē' sis | F57: 0 | G57: 1 | H57: 51
A58: 52 | B58: apostate | C58: A person guilty of abandoning something believed in. "He support the government in its repressive measures and was branded an *** from the cause of liberty." | F58: 0 | G58: 1 | H58: 52
A59: 53 | B59: apothegm | C59: A short, pithy, instructive saying | E59: ap' ə them | F59: 0 | G59: 1 | H59: 53
A60: 54 | B60: apotheosis | C60: deification, glorified ideal | F60: 0 | G60: 1 | H60: 54
A61: 55 | B61: appanage | C61: 1. Money, land etc. given by kings and princes to their younger children as a means of support, hence, 2. A person's rightful gain; perquisite 3. Any territory governed by another country. 4. An accompanying endowment; adjunct | E61: ap' ə nij | F61: 0 | G61: 1 | H61: 55
A62: 56 | B62: apposite | C62: appropriate, fitting, relevant | F62: 0 | G62: 1 | H62: 56
A63: 57 | B63: approbation | C63: Approving, commendation, sanction | F63: 0 | G63: 1 | H63: 57
A64: 58 | B64: arcane | C64: secret, esoteric | F64: 0 | G64: 1 | H64: 58
A65: 59 | B65: arculation | C65: The use of arches in buildings | F65: 0 | G65: 1 | H65: 59
A66: 60 | B66: argot | C66: The specialized vocabulary and idioms of those in the same work, way of life, etc. as the secret argot of criminals. | E66: argō | F66: 0 | G66: 1 | H66: 60
A67: 61 | B67: armiger | C67: (< to carry arms) - orig. an armor carrier for a knight, squire - 2. A person ranking next to a knight and entitled to a coat of arms ' "Impoverished Welsh gentry unambiguously ***ous" | D67: m. | E67: ar' mi jer | F67: 0 | G67: 1 | H67: 61
A68: 62 | B68: arrant | C68: 1. Downright, thorough, unmitigated, notorious, "An -- fool." 2. Errant (obs.) | F68: 0 | G68: 1 | H68: 62
A69: 63 | B69: arras | C69: 1. A rich tapestry; 3. A wall hanging | D69: n. | F69: 0 | G69: 1 | H69: 63
A70: 64 | B70: arriviste | C70: One that is a new and uncertain arrival (as in social position or artistic endeavor) | E70: ar' ē vēst' | F70: 0 | G70: 1 | H70: 64
A71: 65 | B71: arrogate | C71: To appropriate without right | F71: 0 | G71: 1 | H71: 65
A72: 66 | B72: ascriptive characteristics | C72: Social class, sex, race, etc. | F72: 0 | G72: 1 | H72: =A72 -> 66
A73: =1+A72 -> 67 | B73: asperity | C73: Harshness of temper - roughness of surface, sound, weather. "He inveighed with *** against..." | F73: 0 | G73: 1 | H73: 67
A74: 68 | B74: asperity | C74: 1. Roughness or sharpness of tone, temper, or manners; harshness; severity; acrimony: "The cause of her anger did not warrant such ---." 2. Hardship; difficulty; rigor; 3. Roughness of surface; unevenness; 4. Something rough or harsh | E74: ə sper' i tē | F74: 0 | G74: 1 | H74: 68
A75: 69 | B75: asphodel | C75: A type of lily, also a dafodil | F75: 0 | G75: =IF($A$5>A75,0,IF(A75>$A$6,1,(F75+1)/$H$5+G74)) -> 1 | H75: 69
A76: 70 | B76: asseverate | C76: to declare earnestly or solemnly; affirm positively; aver | F76: 0 | G76: 1 | H76: 70
A77: 71 | B77: assiduous | C77: 1. Done with constant and careful attention. w. Diligent; persevering. "She arranged the tea things with -- celerity." | F77: 0 | G77: 1 | H77: 71
A78: 72 | B78: atavistic | C78: Resemblence to a remote ancestor in some characteristic | F78: 0 | G78: 1 | H78: 72
A79: 73 | B79: attenuate | C79: To lessen or weaken in value, severity | F79: 0 | G79: 1 | H79: 73
A80: 74 | B80: auctorial | C80: Of, by, or pertaining to an author, as in "-- pride" | D80: adj. | F80: 0 | G80: 1 | H80: 74
A81: 75 | B81: aureate | C81: 1. Golden; 2. brilliant, splendid | E81: ôr' ē it, -āt | F81: 0 | G81: 1 | H81: 75
A82: 76 | B82: aureole | C82: 1. A radiance surrounding the head or the whole figure in the representation of a sacred personage; 2. any encircling ring of light or color; a halo; 3.Astron corona; 4. Geol. A zone of altered country rock around an igneous intrusion | E82: ôr' ē ōl' | F82: 0 | G82: 1 | H82: 76
A83: 77 | B83: auricular | C83: Of or pertaining to the ear or to the sense of hearing | F83: 0 | G83: 1 | H83: 77
A84: 78 | B84: autocephalous | C84: self-headed; chief not appointed by outsiders | F84: 0 | G84: 1 | H84: 78
A85: 79 | B85: autochthonous | C85: 1. Aboriginal; indigenous; 2. (pathol.) a. found in the part of the body in which it originates as a disease; b. found in a body in a locality in which it originates, as a disease acquired in a place where the patient is; 3. (psychol) of or pertaining to ideas that arise independently of the individual's own train of throught and seem instead to have some alien or external agency as their source; 4. (geol) (of rocks, minerals, etc.) formed in the region where found | E85: ô tok' thə nəs | F85: 0 | G85: 1 | H85: 79
A86: 80 | B86: auto-da-fé | C86: Inquisition trial; hence a public buring of a heretic | D86: sp. | F86: 0 | G86: 1 | H86: 80
A87: 81 | B87: autotroph | C87: Organism able to utilize carbon dioxide as its only source of carbon, like algae | D87: n. | E87: ô' tə trof' | F87: 0 | G87: 1 | H87: 81
A88: 82 | B88: avatar | C88: 1. The incarnation of a Hindu diety (as Vishnu in bodily form). 2. a: An incarnation in human form, b. An embodiment (as of a concept or philosophy) usu. in a person. 3. A variant phase or version of a continuing basic entity | F88: 0 | G88: 1 | H88: 82
A89: 83 | B89: badinage | C89: 1. (n.) Light, playful banter or railery; 2. (vt.) to banter or tease (someone) playfully | F89: 0 | G89: 1 | H89: 83
A90: 84 | B90: bagnio | C90: Turkish or Italian bath house, oriental prison for slaves or a brothel | E90: ban' yo | F90: 0 | G90: 1 | H90: 84
A91: 85 | B91: baldachin | C91: A silk brocade interwoven with gold or silver threads, used chiefly for ceremonial purposes; 2. A permanent ornamental canopy as above a free-standing alter or tomb | E91: bal' də kin, bôl' | F91: 0 | G91: 1 | H91: 85
A92: 86 | B92: baldric | C92: A belt, sometimes richly ornamented, worn diagonally from shoulder to hip, supporting a sword, horn, etc. | E92: bôl' drik | F92: 0 | G92: 1 | H92: 86
A93: 87 | B93: balestra | C93: (fencing) A jump toward an opponent followed immediately by a lunge | F93: 0 | G93: 1 | H93: 87
A94: 88 | B94: balletomane | C94: A ballet enthusiast | D94: n. | E94: ba let' ə mān' | F94: 0 | G94: 1 | H94: 88
A95: 89 | B95: basilisk | C95: Classical mythology--A serpent or lizard said to kill by its breath or look | D95: n. | F95: 0 | G95: 1 | H95: 89
A96: 90 | B96: bastinado | C96: n. 1. A blow or a beating with a stick, cudge, etc. 2. A mode of punishment, consisting of blows with a stick on the soles of the feet or on the buttocks. 3. A stick or cudgel. v.t. 4. To beat with a stick, cane, etc., esp. on the soles of the feet or on the buttocks | F96: 0 | G96: 1 | H96: 90
A97: 91 | B97: battues | C97: Beating bushes and ground cover to drive game--Also a thorough search involving lots of beople in a bustle--Also wanton slaughter | F97: 0 | G97: 1 | H97: 91
A98: 92 | B98: beautific | C98: Bestowing bliss, blessing, happiness | D98: adj. | F98: 0 | G98: 1 | H98: 92
A99: 93 | B99: bedizen | C99: To dress or decorate in a cheap way | F99: 0 | G99: 1 | H99: 93
A100: 94 | B100: belie | C100: 1. To misrepresent; 2. To show to be false, contradict; 3. To act unworthily | D100: v.t. | F100: 0 | G100: 1 | H100: 94
A101: 95 | B101: belles-lettres | C101: Literature treated as a fine art, with a purely aesthetic function | D101: n. | E101: bel let' rə | F101: 0 | G101: 1 | H101: 95
A102: 96 | B102: bellwether | C102: A leader, esp. of a foolish sheeplike crowd | F102: 0 | G102: 1 | H102: 96
A103: 97 | B103: benighted | C103: Overtaken by darkness or night; 2. Existing in a state of intellectual, moral or social darkness (unenlightened) | D103: adj. | F103: 0 | G103: 1 | H103: 97
A104: 98 | B104: benignant | C104: Kindly or gracious | F104: 0 | G104: 1 | H104: 98
A105: 99 | B105: benison | C105: Benediction | F105: 0 | G105: 1 | H105: 99
A106: 100 | B106: besom | C106: A broom, esp. one made of twigs tied to a handle; 2. Anything that cleans, used figuratively | D106: n. | F106: 0 | G106: 1 | H106: 100
A107: 101 | B107: besotted | C107: 1. Silly, foolish, infatuated; 2. Stupified, as with liquor | F107: 0 | G107: 1 | H107: 101
A108: 102 | B108: bespoke | C108: Made to individual order; also, spoken for, engaged to be married | F108: 0 | G108: 1 | H108: 102
A109: 103 | B109: bibelot | C109: A small object of curiousity, beauty or rarity--see bauble, knick knacks | D109: n. | E109: bib lō' | F109: 0 | G109: 1 | H109: 103
A110: 104 | B110: bibulous | C110: Alcoholic, absorbent, spongy | F110: 0 | G110: 1 | H110: 104
A111: 105 | B111: bilious | C111: Pertaining to bile; inner trouble; peevish, irritable, cranky--extremely distasteful | F111: 0 | G111: 1 | H111: 105
A112: 106 | B112: birefringence | C112: Double refraction | D112: n. | F112: 0 | G112: 1 | H112: 106
A113: 107 | B113: bourne | C113: Bound, limit, realm, domain | F113: 0 | G113: 1 | H113: 107
A114: 108 | B114: brume | C114: Mist or fog | F114: 0 | G114: 1 | H114: 108
A115: 109 | B115: buccal | C115: 1. Of or pertaining to the cheek; 2. Pertaining to the sides of the mouth or to the mouth; oral | D115: adj. Anat. | F115: 0 | G115: 1 | H115: 109
A116: 110 | B116: cabal | C116: A small group of secret plotters against; intrigue; a clique | F116: 0 | G116: 1 | H116: 110
A117: 111 | B117: cachinnations | C117: To laugh loudly or immodestly | F117: 0 | G117: 1 | H117: 111
A118: 112 | B118: caesura | C118: A break, esp. a sense pause, usually near the middle of a verse as in "know thyself ||preseume not God to scan." | F118: 0 | G118: 1 | H118: 112
A119: 113 | B119: calumny | C119: A false and malicious statement meant to hurt someone's reputation | D119: n. | F119: 0 | G119: 1 | H119: 113
A120: 114 | B120: calyx | C120: The outermost group of floral parts, usually green; the sepals | E120: GK husk, covering | F120: 0 | G120: 1 | H120: 114
A121: 115 | B121: canon | C121: Standard used in judging, law | F121: 0 | G121: 1 | H121: 115
A122: 116 | B122: canticle | C122: 1. nonmetrical hymn or chant used in church services; 2. A song, poem, or hymn, esp. in praise | D122: n. | F122: 0 | G122: 1 | H122: 116
A123: 117 | B123: caparison | C123: An ornamental covering for a horse b. decorative trappings and harness; 2. Rich clothing: adornment | D123: n. (also v.t.) | F123: 0 | G123: 1 | H123: 117
A124: 118 | B124: captious | C124: Made for the sake of argument or fault finding; 2. Fond of catching others mistakes--"Lest this appear to be a -- criticism."; Apt to catch, entrap, insidious | F124: 0 | G124: 1 | H124: 118
A125: 119 | B125: caracole | C125: A half turn executed by a horseman in riding | F125: 0 | G125: 1 | H125: 119
A126: 120 | B126: carapace | C126: 1. A bony or chitinous case or shield covering the back or part of the back of an animal (as a turtle or crab) 2. A protective, decorative, or disguising shell < the -- of reserve he built around himself | F126: 0 | G126: 1 | H126: 120
A127: 121 | B127: career | C127: To run or move rapidly along; go at full speed | D127: v.i. | F127: 0 | G127: 1 | H127: 121
A128: 122 | B128: carmine | C128: 1. A crimson or purplish red color; 2. A crimson pigment obtained from cochineal; 3. crimson-red or purplish-red; "cheeks of milk and ---" | E128: kär' min | F128: 0 | G128: 1 | H128: 122
A129: 123 | B129: carpe diem | C129: "Seize the day": View (chiefly poetic) that urges the pursuit of pleasure | D129: Latin | E129: kär' pe dē' em | F129: 0 | G129: 1 | H129: 123
A130: 124 | B130: casuistry | C130: Quibbling, specious arguing | F130: 0 | G130: 1 | H130: 124
A131: 125 | B131: catamite | C131: A boy used in pederasty | F131: 0 | G131: 1 | H131: 125
A132: 126 | B132: catchment | C132: 1. Act of catching water; that which catches water, as a resevoir | F132: 0 | G132: 1 | H132: 126
A133: 127 | B133: caterwaul | C133: To make a harsh cry | F133: 0 | G133: 1 | H133: 127
A134: 128 | B134: cathection | C134: The investment of libidinal energy in a passive object | E134: cathexis | F134: 0 | G134: 1 | H134: 128
A135: 129 | B135: celerity | C135: Swiftness, quickness, speed | F135: 0 | G135: 1 | H135: 129
A136: 130 | B136: cenacle | C136: Nun's retreat house | F136: 0 | G136: 1 | H136: =A136 -> 130
A137: =1+A136 -> 131 | B137: cenotaph | C137: A sepulchural monument erected in memory of someone actually buried elsewhere | F137: 0 | G137: 1 | H137: 131
A138: 132 | B138: chapati | C138: Indian flat bread | E138: chapatty | F138: 0 | G138: 1 | H138: 132
A139: 133 | B139: char | C139: Charwoman | D139: Chiefly Brit. n. | F139: 0 | G139: =IF($A$5>A139,0,IF(A139>$A$6,1,(F139+1)/$H$5+G138)) -> 1 | H139: 133
A140: 134 | B140: charivari | C140: A mock serenade with noisemakers given for a newly married couple | E140: shə riv' ə re' | F140: 0 | G140: 1 | H140: 134
A141: 135 | B141: chatelaine | C141: 1. The mistress of a castle; 2. The mistress of an elegant or fashionable household; 3. A hooklike clasp for suspending keys, trinkets, etc., worn at the waist by women; 4. A woman's lapel ornament | D141: n. | F141: 0 | G141: 1 | H141: 135
A142: 136 | B142: chevaux de frise | C142: Portable barrier resembling a sawhorse covered with spikes or barbed wire | F142: 0 | G142: 1 | H142: 136
A143: 137 | B143: chiliad | C143: A thousand; a thousand years | F143: 0 | G143: 1 | H143: 137
A144: 138 | B144: chiliasm | C144: The belief that Christ in person will return and rule on earth during the millenium | E144: kil' i az' m | F144: 0 | G144: 1 | H144: 138
A145: 139 | B145: chimera | C145: 1. A mythological monster; 2. A grotesque creature of the imagination | E145: ki mer' ə | F145: 0 | G145: 1 | H145: 139
A146: 140 | B146: chirsmus | C146: A reversal in the order of words in two otherwise parallel phrases: "He went to the country; to the town whent she." | D146: n. pl. (Rhet.) | F146: 0 | G146: 1 | H146: 140
A147: 141 | B147: choler | C147: Anger, wrath | E147: kol' er | F147: 0 | G147: 1 | H147: 141
A148: 142 | B148: chryselephantine | C148: Made of or overlaid with gold and ivory | F148: 0 | G148: 1 | H148: 142
A149: 143 | B149: chthonian | C149: "celestial vs. --"; Classical mythology; creatures dwelling under the earth | D149: adj. | E149: thō' nē ən | F149: 0 | G149: 1 | H149: 143
A150: 144 | B150: churl | C150: 1. A peasant; rustic; 2. A rude or surly person | D150: n. | F150: 0 | G150: 1 | H150: 144
A151: 145 | B151: chyme | C151: The semifluid mass into which food is converted, passing from stomach to small intesting | D151: n. | E151: kīm | F151: 0 | G151: 1 | H151: 145
A152: 146 | B152: cicatrix | C152: (med.) New tissue which forms over a wound; scar | D152: n. | E152: sik' ə triks | F152: 0 | G152: 1 | H152: 146
A153: 147 | B153: circadian | C153: Pertaining to rhythmic biological cycles of amout 24-hour duration | D153: adj. | F153: 0 | G153: 1 | H153: 147
A154: 148 | B154: claustral | C154: Cloister like | F154: 0 | G154: 1 | H154: 148
A155: 149 | B155: coccyx | C155: A small triangular bone forming the lower extremity of the spinal column in man, consisting four ankylosed (grown together) rudimentary vertebrae | E155: kok' siks | F155: 0 | G155: 1 | H155: 149
A156: 150 | B156: coenobite | C156: A member of a religious order living in a convent or monastary--As opposed to anchorite--"To the --itic refuge of a small hotel." | E156: (cenobite, coenobitic) | F156: 0 | G156: 1 | H156: 150
A157: 151 | B157: coeval | C157: Contemporary | D157: adj. | F157: 0 | G157: 1 | H157: 151
A158: 152 | B158: cogent | C158: Convincing or believable by virtue of forcible, clear presentation; To the point, relevant | D158: L. | F158: 0 | G158: 1 | H158: 152
A159: 153 | B159: cognate | C159: adj. Related by family; having the same ancestor; related through the same origin; derived from a common original form; Having the same nature or quality; n. 1. A person related to another by common ancestry; 2. A -- word, language or things | F159: 0 | G159: 1 | H159: 153
A160: 154 | B160: cognitive characteristics | C160: Ability to logically combine, analyze, interpret and apply information symbols | F160: 0 | G160: 1 | H160: 154
A161: 155 | B161: colligation | C161: something bound together; logic to bind facts together | F161: 0 | G161: 1 | H161: 155
A162: 156 | B162: colloquy | C162: A conversation, esp. a somewhat formal one | F162: 0 | G162: 1 | H162: 156
A163: 157 | B163: comity | C163: Mutual courtesy; civility; 2. The same among nations | F163: 0 | G163: 1 | H163: 157
A164: 158 | B164: comminate | C164: To threaten especially with anathema, to curse or ban solemnly--"A --ory grunt" | E164: kom' ə nāt | F164: 0 | G164: 1 | H164: 158
A165: 159 | B165: conciliar | C165: Of or issued by council | F165: 0 | G165: 1 | H165: 159
A166: 160 | B166: conciliarism | C166: Theory of church government that places authority with councils rather than with the papacy | F166: 0 | G166: 1 | H166: 160
A167: 161 | B167: concupiscence | C167: Strong or abnormal desire or appetite, especially, sexually desirous; lustful | D167: n. | E167: kon kū' pə-snt | F167: 0 | G167: 1 | H167: 161
A168: 162 | B168: condign | C168: Well deserved; fitting; adequate; usuallly of punishment | F168: 0 | G168: 1 | H168: 162
A169: 163 | B169: condottiere | C169: 1. A leader of a private band of mercenary soldiers in Italy, esp. in the 14th and 15th centuries; 2. A military adventurer; mercenary; soldier of fortune | D169: It. n. | E169: kôn' də tyâr' ā | F169: 0 | G169: 1 | H169: 163
A170: 164 | B170: conflation | C170: The result of bringing together--collecting--merging, esp. of combining two readings of a text | F170: 0 | G170: 1 | H170: 164
A171: 165 | B171: congeries | C171: A heap, pile; "From the plane the town resembled a -- of tiny boxes" | E171: a congeries of tiny boxes | F171: 0 | G171: 1 | H171: 165
A172: 166 | B172: consort | C172: 1. To associate; keep company; 2. To agree or harmonize | D172: v.i. | F172: 0 | G172: 1 | H172: 166
A173: 167 | B173: consummatory | C173: Fullfilling, completing | F173: 0 | G173: 1 | H173: 167
A174: 168 | B174: contemn | C174: To treat with or think of with contempt, despise | F174: 0 | G174: 1 | H174: 168
A175: 169 | B175: contumacious | C175: Pernicious in resisting authority, esp. of courts | F175: 0 | G175: 1 | H175: 169
A176: 170 | B176: contumely | C176: hauty and contemptuous rudeness; scornful insolence | F176: 0 | G176: 1 | H176: 170
A177: 171 | B177: cony | C177: (also coney) "They proposed a game of change. I'd have none of it, not yet their --." [archaic] A bullible person, dupe 2. rabbit, rabbit fur | F177: 0 | G177: 1 | H177: 171
A178: 172 | B178: copro | C178: Dung | F178: 0 | G178: 1 | H178: 172
A179: 173 | B179: coprolalia | C179: (Psychology) The obsessive use of obscene language | D179: n. | E179: kop' rə lā' lē ə | F179: 0 | G179: 1 | H179: 173
A180: 174 | B180: coquelicot | C180: Cornflower; color of a cock's comb | F180: 0 | G180: 1 | H180: 174
A181: 175 | B181: corban | C181: Chiefly biblical. An offering of any kind made to God, esp. in fulfillment of a vow (Heb. lit. a drawing near) | E181: <Heb. gor bān | F181: 0 | G181: 1 | H181: 175
A182: 176 | B182: corrigibility | C182: The quality of being correctible, improvable or reformable or the willingness to... | F182: 0 | G182: 1 | H182: 176
A183: 177 | B183: cortege | C183: 1. A train of attendants; retinue; 2. Procession, esp. a funeral procession | F183: 0 | G183: 1 | H183: 177
A184: 178 | B184: coruscate | C184: To emit vivid flashes of light; sparkle; scintillate; gleam; "His ---ing voice" | F184: 0 | G184: 1 | H184: 178
A185: 179 | B185: costermonger | C185: A person who sells fruit, vegetables, etc. from a cart or street stand | F185: 0 | G185: 1 | H185: 179
A186: 180 | B186: costive | C186: Constipated, slow in action or in expressing ideas, opinions | F186: 0 | G186: 1 | H186: 180
A187: 181 | B187: coterminous | C187: Having a common boundary | E187: conterminous | F187: 0 | G187: 1 | H187: 181
A188: 182 | B188: coulisse | C188: something that slides in a groove; A timber with a groove for a sliding panel; Theatre, the space between two wing flats; Any space or area backstage | D188: fr. | F188: 0 | G188: 1 | H188: 182
A189: 183 | B189: coulisse | C189: 1. A timber or the like having a groove for guiding a sliding panel; 2. Theat. a. the space between two wing flats, leg drops, or the like; b. any space or area backstage | E189: kōō lēs' | F189: 0 | G189: 1 | H189: 183
A190: 184 | B190: courser | C190: A graceful, spirited horse; war horse | D190: n. | F190: 0 | G190: 1 | H190: 184
A191: 185 | B191: covert | C191: In hunting, a hiding place for game or birds | D191: n. | F191: 0 | G191: 1 | H191: 185
A192: 186 | B192: crapulous | C192: Intemperate, debauched, drunk, sick from intemperance | F192: 0 | G192: 1 | H192: 186
A193: 187 | B193: craven | C193: Cowardly, abjectly afraid | D193: adj. | F193: 0 | G193: 1 | H193: 187
A194: 188 | B194: craven | C194: A coward | D194: n. | F194: 0 | G194: 1 | H194: 188
A195: 189 | B195: creel | C195: A wickerwork basket worn on the back or suspended from the shoulder, used esp. for carrying fish | F195: 0 | G195: 1 | H195: 189
A196: 190 | B196: crepuscular | C196: Twighlight, dim, indistinct | F196: 0 | G196: 1 | H196: 190
A197: 191 | B197: crepuscular ray | C197: A twighlight ray of sunlight shining through breaks in high clouds and illuminating dust particles | F197: 0 | G197: 1 | H197: 191
A198: 192 | B198: crepuscule | C198: Twighlight, dark L. (var. of crepen--dark) | D198: n. | F198: 0 | G198: 1 | H198: 192
A199: 193 | B199: cresive | C199: capable of growth | F199: 0 | G199: 1 | H199: 193
A200: 194 | B200: cresively | C200: Increasingly | F200: 0 | G200: 1 | H200: =A200 -> 194
A201: =1+A200 -> 195 | B201: cresset | C201: A small metal cup or basket often mounted on a pole or suspended from above with lighted pitch, oil or a rope steeped in rosin | F201: 0 | G201: 1 | H201: 195
A202: 196 | B202: cretaceous | C202: Containing, composed of or having the nature of chalk; 2. Third geological period following the Jurassic in the Mesozoic Era; end of dinosaurs and start of mammals | F202: 0 | G202: 1 | H202: 196
A203: 197 | B203: cretonne | C203: A heavy unglazed cotton or linen cloth with patterns printed in color on one or both sides--Used for curtains, chair covers | E203: kri ton' | F203: 0 | G203: =IF($A$5>A203,0,IF(A203>$A$6,1,(F203+1)/$H$5+G202)) -> 1 | H203: 197
... 2806 more rows

Sheet Best
A4: 2999 | B4: =[1]Drill!M12 -> â = `; ə = 1; ā = 2; ē = 3; ī = 4; ō = 5 | C4: =[1]Drill!Q12 -> ä = 6; ô = 7; ū = 8; ŭ = 9; û = 0 | H4: Range Sum
A5: =IF(ISNUMBER(Select!E7),IF(Select!E7>1,IF(Select!E7>A4,1,IF(Select!E8<=Select!E7,1,Select!E7)),1),1) -> 1 | B5: =Drill!M3 -> Word | C5: =Drill!M4 -> Meaning | D5: =Drill!M3&" Hints" -> Word Hints | E5: =Drill!M4&" Hints" -> Meaning Hints | F5: Delta | G5: Range Cum. | H5: =SUM(OFFSET(Adjusts1,A5-1,0,A6-A5+1,1))+A6-A5+1 -> 10 | M5: =Drill!M5 -> Character: | N5: =Drill!N5 -> 0 | O5: =Drill!O5 -> ə | P5: =Drill!P5 -> ā | Q5: =Drill!Q5 -> ē | R5: =Drill!R5 -> ī | S5: =Drill!S5 -> ō | T5: =Drill!T5 -> ä | U5: =Drill!U5 -> ô | V5: =Drill!V5 -> ū | W5: =Drill!W5 -> ŭ | X5: =Drill!X5 -> ə | Y5: =Drill!Y5 -> ā | Z5: =Drill!Z5 -> ē | AA5: =Drill!AA5 -> ī | AB5: =Drill!AB5 -> ō | AC5: =Drill!AC5 -> ä | AD5: =Drill!AD5 -> ô | AE5: =Drill!AE5 -> ū | AF5: =Drill!AF5 -> ŭ | AG5: =Drill!AG5 -> ə | AH5: =Drill!AH5 -> ā | AI5: =Drill!AI5 -> ē | AJ5: =Drill!AJ5 -> ī | AK5: =Drill!AK5 -> ō | AL5: =Drill!AL5 -> ä | AM5: =Drill!AM5 -> ô | AN5: =Drill!AN5 -> ū | AO5: =Drill!AO5 -> ŭ | AP5: =Drill!AP5 -> ə | AQ5: =Drill!AQ5 -> ā | AR5: =Drill!AR5 -> ē | AS5: =Drill!AS5 -> ī | AT5: =Drill!AT5 -> ō | AU5: =Drill!AU5 -> ä | AV5: =Drill!AV5 -> ô | AW5: =Drill!AW5 -> ū | AX5: =Drill!AX5 -> ŭ
A6: =IF(ISNUMBER(Select!E8),IF(Select!E8>A4,B6,IF(Select!E8<=A5,B6,IF(Select!E8>B6,B6,Select!E8))),B6) -> 10 | B6: =A4-COUNTBLANK(B7:B3005) -> 787 | F6: Add to 100% | G6: 0 | H6: 0 | M6: =Drill!M6 -> Code: | N6: =Drill!N6 -> 0 | O6: =Drill!O6 -> 1 | P6: =Drill!P6 -> 2 | Q6: =Drill!Q6 -> 3 | R6: =Drill!R6 -> 4 | S6: =Drill!S6 -> 5 | T6: =Drill!T6 -> 6 | U6: =Drill!U6 -> 7 | V6: =Drill!V6 -> 8 | W6: =Drill!W6 -> 9 | X6: =Drill!X6 -> 1 | Y6: =Drill!Y6 -> 2 | Z6: =Drill!Z6 -> 3 | AA6: =Drill!AA6 -> 4 | AB6: =Drill!AB6 -> 5 | AC6: =Drill!AC6 -> 6 | AD6: =Drill!AD6 -> 7 | AE6: =Drill!AE6 -> 8 | AF6: =Drill!AF6 -> 9 | AG6: =Drill!AG6 -> 1 | AH6: =Drill!AH6 -> 2 | AI6: =Drill!AI6 -> 3 | AJ6: =Drill!AJ6 -> 4 | AK6: =Drill!AK6 -> 5 | AL6: =Drill!AL6 -> 6 | AM6: =Drill!AM6 -> 7 | AN6: =Drill!AN6 -> 8 | AO6: =Drill!AO6 -> 9 | AP6: =Drill!AP6 -> 1 | AQ6: =Drill!AQ6 -> 2 | AR6: =Drill!AR6 -> 3 | AS6: =Drill!AS6 -> 4 | AT6: =Drill!AT6 -> 5 | AU6: =Drill!AU6 -> 6 | AV6: =Drill!AV6 -> 7 | AW6: =Drill!AW6 -> 8 | AX6: =Drill!AX6 -> 9
A7: =1 -> 1 | B7: garner | C7: n. 1. A place for storing grain; v.t. 2. To gather up and store; deposit in, or as in, a granary | F7: 0 | G7: =IF(OR($A$5>A7,A7>$A$6),0,(F7+1)/$H$5+G6) -> 0.1 | H7: =A7 -> 1
A8: =1+A7 -> 2 | B8: cognitive characteristics | C8: Ability to logically combine, analyze, interpret and apply information symbols | F8: 0 | G8: =IF(OR($A$5>A8,A8>$A$6),0,(F8+1)/$H$5+G7) -> 0.2 | H8: =A8 -> 2
A9: =1+A8 -> 3 | B9: tapis | C9: Tapestry, curtain, carpet: "Came on the --" is idiomatic for came under consideration or deliberation | F9: 0 | G9: =IF(OR($A$5>A9,A9>$A$6),0,(F9+1)/$H$5+G8) -> 0.3 | H9: 3 | M9: =Drill!M9 -> Step trans: | N9: 1 | O9: =IF(ISERR(FIND(O6,N9)),N9,LEFT(N9,FIND(O6,N9)-1)&O5&MID(N9,FIND(O6,N9)+1,LEN(N9))) -> ə | P9: =IF(ISERR(FIND(P6,O9)),O9,LEFT(O9,FIND(P6,O9)-1)&P5&MID(O9,FIND(P6,O9)+1,LEN(O9))) -> ə | Q9: ə | R9: ə | S9: ə | T9: ə | U9: ə | V9: ə | W9: ə | X9: ə | Y9: ə | Z9: ə | AA9: ə | AB9: ə | AC9: ə | AD9: ə | AE9: ə | AF9: ə | AG9: ə | AH9: ə | AI9: ə | AJ9: ə | AK9: ə | AL9: ə | AM9: ə | AN9: ə | AO9: ə | AP9: ə | AQ9: ə | AR9: ə | AS9: ə | AT9: ə | AU9: ə | AV9: ə | AW9: ə | AX9: ə
A10: 4 | B10: premise | C10: To set forth beforehand as an introduction: "We might --..." | D10: as a verb | F10: 0 | G10: =IF($A$5>A10,0,IF(A10>$A$6,1,(F10+1)/$H$5+G9)) -> 0.4 | H10: 4 | M10: =Drill!M10 -> W/char: | N10: =IF(N9=0,"",IF(AX9=0,"",AX9)) -> ə
A11: 5 | B11: pusillanimous | C11: Cowardly, faint-hearted (L. Very small part of the animus-spirit) | F11: 0 | G11: =IF($A$5>A11,0,IF(A11>$A$6,1,(F11+1)/$H$5+G10)) -> 0.5 | H11: 5
A12: 6 | B12: lissome | C12: 1. Supple, limbre, flexible; 2. Nimble, agile | E12: lis' əm (also lissom) | F12: 0 | G12: 0.6 | H12: 6
A13: 7 | B13: peroration | C13: The concluding part of a speech; emphaic recapitualation | F13: 0 | G13: 0.7 | H13: 7
A14: 8 | B14: polyglot | C14: 1. Knowing several languages; multilingual; w. in several languages | D14: adj. | F14: 0 | G14: 0.8 | H14: 8
A15: 9 | B15: verdigris | C15: A green or bluish patina formed on copper, brass, or bronze surfaces exposed to the atmosphere for long periods of time, consisting principally of basic copper sulfate | F15: 0 | G15: 0.9 | H15: 9
A16: 10 | B16: tendentious | C16: Characterized by a deliberate tendency or aim; especially advancing a definite point of view or doctrine | F16: 0 | G16: 1 | H16: 10
A17: 11 | B17: effulgent | C17: Shining forth brilliantly, radiant | F17: 0 | G17: 1 | H17: 11
A18: 12 | B18: craven | C18: Cowardly, abjectly afraid | D18: adj. | F18: 0 | G18: 1 | H18: 12
A19: 13 | B19: docent | C19: A college lecturer (often receiving only private fees as a tutor) | D19: Ger. | F19: 0 | G19: 1 | H19: 13
A20: 14 | B20: gueridon | C20: A small table or stand as for holding a candelabra | E20: ger' ē don' | F20: 0 | G20: 1 | H20: 14
A21: 15 | B21: epistemology | C21: The study or theory of the origin, nature or limits of knowledge | F21: 0 | G21: 1 | H21: 15
A22: 16 | B22: hap | C22: Chance, fortune, luck | F22: 0 | G22: 1 | H22: 16
A23: 17 | B23: frangible | C23: Breakable | F23: 0 | G23: 1 | H23: 17
A24: 18 | B24: estivate | C24: 1. To spend the summer; 2. To spend the summer in a dormant condition: opposed to hibernate | F24: 0 | G24: 1 | H24: 18
A25: 19 | B25: prediliction | C25: Preference, preconceived liking | F25: 0 | G25: 1 | H25: 19
A26: 20 | B26: hostler | C26: One who takes care of horses at an inn--an ostler | F26: 0 | G26: 1 | H26: 20
A27: 21 | B27: antiphonal | C27: Pertaining to verse or song changed or sung in response | D27: adj. | E27: an tif' ə nəl | F27: 0 | G27: 1 | H27: 21
A28: 22 | B28: disingenuous | C28: Insincerity, not straightforward, not candid | F28: 0 | G28: 1 | H28: 22
A29: 23 | B29: epicene | C29: Belonging to, having characteristics of, or common to both sexes: "Fashions are becoming increasingly --." | F29: 0 | G29: 1 | H29: 23
A30: 24 | B30: plenipotentiary | C30: A person invested with full powers | E30: plen' ē pə ten' shē er' ē | F30: 0 | G30: 1 | H30: 24
A31: 25 | B31: excrescense | C31: 1. A normal outgrowth; natural appendage, as fingernails, hair; 2. An abnormal or disfiguring outgrowth or addition, as a bunion | D31: n. | E31: iks kres' ns | F31: 0 | G31: 1 | H31: 25
A32: 26 | B32: dross | C32: 1. A scum formed on molten metal; 2. Waste matter, worthless stuff, rubbish, refuse | F32: 0 | G32: 1 | H32: 26
A33: 27 | B33: cupidity | C33: Eager or inordinate desire, esp. to possess something; greed, avarice | F33: 0 | G33: 1 | H33: 27
A34: 28 | B34: veridical | C34: Truthful | F34: 0 | G34: 1 | H34: 28
A35: 29 | B35: cenotaph | C35: A sepulchural monument erected in memory of someone actually buried elsewhere | F35: 0 | G35: 1 | H35: 29
A36: 30 | B36: calumny | C36: A false and malicious statement meant to hurt someone's reputation | D36: n. | F36: 0 | G36: 1 | H36: 30
A37: 31 | B37: expurgate | C37: 1. To amend by removing offensive or objectionable matter; 2. To cleanse of moral offensiveness | F37: 0 | G37: 1 | H37: 31
A38: 32 | B38: mulct | C38: v. t. To punish by a fine, penalize by depriving of something; to deprive of something by fraud or deceit; n. A fine or similar penalty | F38: 0 | G38: 1 | H38: 32
A39: 33 | B39: theodolite | C39: A survey instrument used to measure vertical and horizontal angles | F39: 0 | G39: 1 | H39: 33
A40: 34 | B40: sapient | C40: Wise, full of knowledge | F40: 0 | G40: 1 | H40: 34
A41: 35 | B41: positivism | C41: A philosophical system concerned with positive facts, and excluding speculation | D41: n. | F41: 0 | G41: 1 | H41: 35
A42: 36 | B42: angst | C42: A feeling of dread, anxiety, anguish | D42: n. | E42: äŋkst | F42: 0 | G42: 1 | H42: 36
A43: 37 | B43: pastiche | C43: A pasticcio; especially a take-off; made of bits and pieces | F43: 0 | G43: 1 | H43: 37
A44: 38 | B44: ormolu | C44: An alloy of copper or zinc used to imitate gold, gilded metal | F44: 0 | G44: 1 | H44: 38
A45: 39 | B45: hegemony | C45: Leadership or dominance | F45: 0 | G45: 1 | H45: 39
A46: 40 | B46: ingle | C46: Fireplace, hearth, fire burning in a hearth | D46: Gaelic | F46: 0 | G46: 1 | H46: 40
A47: 41 | B47: syncretistic | C47: The combination or reconciliation of differing religious beliefs | F47: 0 | G47: 1 | H47: 41
A48: 42 | B48: factitious | C48: False or artificial | F48: 0 | G48: 1 | H48: 42
A49: 43 | B49: quondam | C49: That formerly was or existed; former: "His -- girlfriend." | D49: adj. | F49: 0 | G49: 1 | H49: 43
A50: 44 | B50: fatuous | C50: Complacently stupid or inane | F50: 0 | G50: 1 | H50: 44
A51: 45 | B51: panegyric | C51: Praise, eulogy, laudation, formal speech or writing of praise | D51: Greek | E51: pan ē gir' ik | F51: 0 | G51: 1 | H51: 45
A52: 46 | B52: imbrue | C52: To wet, soak or strain, especially with blood | F52: 0 | G52: 1 | H52: 46
A53: 47 | B53: saporous | C53: Of or having taste or flavor | F53: 0 | G53: 1 | H53: 47
A54: 48 | B54: sidereal | C54: Of or pertaining to the stars | E54: sī dir' ē əl, sə.. | F54: 0 | G54: 1 | H54: 48
A55: 49 | B55: hobbledehoy | C55: 1. A youth between boy and manhood-adolescent; 2. An awkward, clumsy, gawky youth or boy | F55: 0 | G55: 1 | H55: 49
A56: 50 | B56: rue | C56: To fell sorrow over; regret bitterly; repent of; to wish that (something) had never been done, taken place | D56: v. | F56: 0 | G56: 1 | H56: 50
A57: 51 | B57: geophagy | C57: The eating of earth | F57: 0 | G57: 1 | H57: 51
A58: 52 | B58: zaftig | C58: Having a plump and sexually attractive figure; full-bodied, well proportioned (Yiddish) | F58: 0 | G58: 1 | H58: 52
A59: 53 | B59: pariah | C59: Any outcast; someone despised or rejected by others | F59: 0 | G59: 1 | H59: 53
A60: 54 | B60: potlatch | C60: A ceremonial festival at which gifts are bestowed on the guests and property destroyed by its owner in a show of wealth which guests later attempt to surpass | F60: 0 | G60: 1 | H60: 54
A61: 55 | B61: venery | C61: L. Sexual intercourse, indulgence of sexual desire; Fr. Hunting as an art or sport; the chase | F61: 0 | G61: 1 | H61: 55
A62: 56 | B62: lineament | C62: 1.a. An outline, feature, or contour of a body or figure and esp. of a face. Usu. Used in pl. b. A linear topographic feature (as of the earth or a planet) that reveals a characteristic (as a fault or subsurface structure) | D62: n. | F62: 0 | G62: 1 | H62: 56
A63: 57 | B63: ostensive | C63: Immediately demonstrative; manefestly visible | F63: 0 | G63: 1 | H63: 57
A64: 58 | B64: ablate | C64: To remove or destroy especially by cutting, abrading, or evaporating | F64: 0 | G64: 1 | H64: 58
A65: 59 | B65: simony | C65: The making of profit out of sacred things; the sin of buying or selling ecclesiastical preferments, benefits, etc. | F65: 0 | G65: 1 | H65: 59
A66: 60 | B66: redolent | C66: 1. Sweet smelling; fragrant; 2. smelling (of) as -- of flowers, hence, 3. Suggestive (of) (olere-scent-to smell) | D66: adj. | E66: red' ə lent | F66: 0 | G66: 1 | H66: 60
A67: 61 | B67: uxorious | C67: Doting or overly fond of one's wife | F67: 0 | G67: 1 | H67: 61
A68: 62 | B68: mendacious | C68: Lying, untruthful, false: "A scabrous, -- autobiography." | F68: 0 | G68: 1 | H68: 62
A69: 63 | B69: aigrette | C69: A plume or tuft of feathers, esp. the back plume of a heron arranged as a head ornament | F69: 0 | G69: 1 | H69: 63
A70: 64 | B70: attenuate | C70: To lessen or weaken in value, severity | F70: 0 | G70: 1 | H70: 64
A71: 65 | B71: votary | C71: 1. A person who is bound by solemn religious vows; as a monk or nun; 2. An adherent of a religion or cult; 3. A person who is devoted or addicted to some subject or pursuit; A -- of jazz; 4. A devoted follower or admirer | F71: 0 | G71: 1 | H71: 65
A72: 66 | B72: irenic | C72: Promoting peace; peaceful, pacific "-- blue" | F72: 0 | G72: 1 | H72: =A72 -> 66
A73: =1+A72 -> 67 | B73: solecism | C73: Substandard grammar; breach of good manners; an error or inconsistency (Gk. after a city were incorrect Gk. was spoken) | F73: 0 | G73: 1 | H73: 67
A74: 68 | B74: inexorable | C74: Unrelenting, unmoveable by entreaty or persuasion | F74: 0 | G74: 1 | H74: 68
A75: 69 | B75: catchment | C75: 1. Act of catching water; that which catches water, as a resevoir | F75: 0 | G75: =IF($A$5>A75,0,IF(A75>$A$6,1,(F75+1)/$H$5+G74)) -> 1 | H75: 69
A76: 70 | B76: serendipitous | C76: (An attitude for) an accidental fortuitous discovery; not natural, genuine or spontaneous | F76: 0 | G76: 1 | H76: 70
A77: 71 | B77: puerile | C77: Childish, trivial, silly, young | F77: 0 | G77: 1 | H77: 71
A78: 72 | B78: cicatrix | C78: (med.) New tissue which forms over a wound; scar | D78: n. | E78: sik' ə triks | F78: 0 | G78: 1 | H78: 72
A79: 73 | B79: carapace | C79: 1. A bony or chitinous case or shield covering the back or part of the back of an animal (as a turtle or crab) 2. A protective, decorative, or disguising shell < the -- of reserve he built around himself | F79: 0 | G79: 1 | H79: 73
A80: 74 | B80: pyrrhic victory | C80: A costly victory | E80: Greek king Pyrrihus | F80: 0 | G80: 1 | H80: 74
A81: 75 | B81: otiose | C81: 1. Leisured, idle; indolent; 2. Ineffective or futile; 3. Superfluous or useless | E81: ō' shē ōs', ō' tē | F81: 0 | G81: 1 | H81: 75
A82: 76 | B82: teleological | C82: Having an ultimate purpose | F82: 0 | G82: 1 | H82: 76
A83: 77 | B83: costermonger | C83: A person who sells fruit, vegetables, etc. from a cart or street stand | F83: 0 | G83: 1 | H83: 77
A84: 78 | B84: susurrus | C84: A whispering, murmuring or rustling sound: "The ascending -- of a silk skirt." | E84: soo-sŭr' əs | F84: 0 | G84: 1 | H84: 78
A85: 79 | B85: sumptuary | C85: Pertaining to, dealing with, or regulating expense or expenditure | F85: 0 | G85: 1 | H85: 79
A86: 80 | B86: manumit | C86: To free from slavery | F86: 0 | G86: 1 | H86: 80
A87: 81 | B87: conciliar | C87: Of or issued by council | F87: 0 | G87: 1 | H87: 81
A88: 82 | B88: meretricious | C88: 1. Originally of, or like or characteristic of a prostitute, hence; 2. Aluring by false, showy charms, speciously attractive, flashy, tawdry | F88: 0 | G88: 1 | H88: 82
A89: 83 | B89: euphony | C89: agreeableness of sound | F89: 0 | G89: 1 | H89: 83
A90: 84 | B90: cabal | C90: A small group of secret plotters against; intrigue; a clique | F90: 0 | G90: 1 | H90: 84
A91: 85 | B91: devolve | C91: 1. To roll down or onward; 2. To pass on to another or others (said of duties) | F91: 0 | G91: 1 | H91: 85
A92: 86 | B92: crapulous | C92: Intemperate, debauched, drunk, sick from intemperance | F92: 0 | G92: 1 | H92: 86
A93: 87 | B93: fructify | C93: To make fruitful or productive | D93: v.t. | F93: 0 | G93: 1 | H93: 87
A94: 88 | B94: impugn | C94: To attach by argument or criticism challenge as false: "Underground campaign --ed the Americanism of Catholics." | F94: 0 | G94: 1 | H94: 88
A95: 89 | B95: prognathous | C95: Having protrusive jaws | E95: prog' na thəs | F95: 0 | G95: 1 | H95: 89
A96: 90 | B96: caparison | C96: An ornamental covering for a horse b. decorative trappings and harness; 2. Rich clothing: adornment | D96: n. (also v.t.) | F96: 0 | G96: 1 | H96: 90
A97: 91 | B97: timorous | C97: Timid, lacking courage | F97: 0 | G97: 1 | H97: 91
A98: 92 | B98: cenacle | C98: Nun's retreat house | F98: 0 | G98: 1 | H98: 92
A99: 93 | B99: splenetic | C99: Given to melancholy; malevolent; irascible: "Adams, in his -- temper, held that both these unnecessary evils..." | F99: 0 | G99: 1 | H99: 93
A100: 94 | B100: crepuscule | C100: Twighlight, dark L. (var. of crepen--dark) | D100: n. | F100: 0 | G100: 1 | H100: 94
A101: 95 | B101: gloaming | C101: Twilight | F101: 0 | G101: 1 | H101: 95
A102: 96 | B102: amusia | C102: The inability to produce or comprehend music or musical sounds | F102: 0 | G102: 1 | H102: 96
A103: 97 | B103: perorate | C103: To harangue | F103: 0 | G103: 1 | H103: 97
A104: 98 | B104: myrmidon | C104: One who executes without scruple his or her master's commands; Fought under achilles | D104: n. | E104: mûr' mi don' | F104: 0 | G104: 1 | H104: 98
A105: 99 | B105: tumescent | C105: Swelling becoming tumid, swollen (same root as tumor) | F105: 0 | G105: 1 | H105: 99
A106: 100 | B106: deracinate | C106: To pull up by the roots, uproot, extirpate, eradicate; 2. To isolate or alienate from a native culture or environment | D106: di ras' ə nāt | F106: 0 | G106: 1 | H106: 100
A107: 101 | B107: raillery | C107: Light, good-natured, ridicule or satire; banter teasing | F107: 0 | G107: 1 | H107: 101
A108: 102 | B108: purblind | C108: Completely blind | F108: 0 | G108: 1 | H108: 102
A109: 103 | B109: nubile | C109: (A woman) suitable for marriage, esp. in regard to age or physical development | E109: nōō' bil | F109: 0 | G109: 1 | H109: 103
A110: 104 | B110: gainsay | C110: To deny, oppose, forbid | F110: 0 | G110: 1 | H110: 104
A111: 105 | B111: anomie | C111: normlessness | D111: soc. | F111: 0 | G111: 1 | H111: 105
A112: 106 | B112: nabobs | C112: A very rich man | F112: 0 | G112: 1 | H112: 106
A113: 107 | B113: meliorism | C113: The belief that the world improves | F113: 0 | G113: 1 | H113: 107
A114: 108 | B114: fulgate | C114: To flash like lightning (to describe pains) | F114: 0 | G114: 1 | H114: 108
A115: 109 | B115: feckless | C115: Ineffective, incompetent, feeble, without worth, spirit or value, lazy, indifferent: "-- attempts to repair the plumbing." "A -- young man who never assumed responsibility." | F115: 0 | G115: 1 | H115: 109
A116: 110 | B116: bespoke | C116: Made to individual order; also, spoken for, engaged to be married | F116: 0 | G116: 1 | H116: 110
A117: 111 | B117: eugenic | C117: Specifically organized masterminding of procreation; controling of heredity | F117: 0 | G117: 1 | H117: 111
A118: 112 | B118: lemur | C118: An animal; a ghost | F118: 0 | G118: 1 | H118: 112
A119: 113 | B119: lucerne | C119: Alfalfa | D119: Brit. | F119: 0 | G119: 1 | H119: 113
A120: 114 | B120: purlieus | C120: Neighborhood; an outlying district; environs | F120: 0 | G120: 1 | H120: 114
A121: 115 | B121: schadenfreude | C121: Enjoyment from others' troubles | F121: 0 | G121: 1 | H121: 115
A122: 116 | B122: gravid | C122: Pregnant | F122: 0 | G122: 1 | H122: 116
A123: 117 | B123: corrigibility | C123: The quality of being correctible, improvable or reformable or the willingness to... | F123: 0 | G123: 1 | H123: 117
A124: 118 | B124: procrustes | C124: A robber who stretched or amputated the legs of his victims to make them conform to the length of his bed | F124: 0 | G124: 1 | H124: 118
A125: 119 | B125: asseverate | C125: to declare earnestly or solemnly; affirm positively; aver | F125: 0 | G125: 1 | H125: 119
A126: 120 | B126: salient | C126: (To lean) Standing out from the rest, conspicuous | F126: 0 | G126: 1 | H126: 120
A127: 121 | B127: epithet | C127: 1. Any word or phrase applied to a person or thing to describe an actual or attributed quality. "Richard The Lion-Hearted" is an -- of Richard I. 2. A characterizing word or phrase firmly associated with a person or thing and often occuring in its place as "man's best friend" for dog. 3. A word or phrase used invectively as a term of abuse or contempt to express hostility | D127: n. | F127: 0 | G127: 1 | H127: 121
A128: 122 | B128: ratiocinate | C128: To reason, esp. with formal logic | D128: v.i. | F128: 0 | G128: 1 | H128: 122
A129: 123 | B129: impecunious | C129: Having no money, penniless, poor | F129: 0 | G129: 1 | H129: 123
A130: 124 | B130: tautology | C130: Needless repetition, especially in logic | F130: 0 | G130: 1 | H130: 124
A131: 125 | B131: metaphysical | C131: Of the nature of being, or essential being | F131: 0 | G131: 1 | H131: 125
A132: 126 | B132: belie | C132: 1. To misrepresent; 2. To show to be false, contradict; 3. To act unworthily | D132: v.t. | F132: 0 | G132: 1 | H132: 126
A133: 127 | B133: inchoate | C133: Just begun; in the early stages; incipient; rudimentary | D133: adj. | F133: 0 | G133: 1 | H133: 127
A134: 128 | B134: etiology | C134: The assignment of a cause as, the -- of a folkway; The theory of the origins of a disease. | F134: 0 | G134: 1 | H134: 128
A135: 129 | B135: knout | C135: 1. A whip having a lash of leather thongs, formerly used in Russia for flogging criminals; 2. (v.t.) to flog with a knout | E135: nout | F135: 0 | G135: 1 | H135: 129
A136: 130 | B136: anapestic | C136: Short syllables, followed by long | F136: 0 | G136: 1 | H136: =A136 -> 130
A137: =1+A136 -> 131 | B137: carpe diem | C137: "Seize the day": View (chiefly poetic) that urges the pursuit of pleasure | D137: Latin | E137: kär' pe dē' em | F137: 0 | G137: 1 | H137: 131
A138: 132 | B138: argot | C138: The specialized vocabulary and idioms of those in the same work, way of life, etc. as the secret argot of criminals. | E138: argō | F138: 0 | G138: 1 | H138: 132
A139: 133 | B139: prebend | C139: 1. The part of revenue of a cathedral or collegiate church paid as a clergyman's salary; 2. The property or tax yielding such revenue | E139: preb' ənd | F139: 0 | G139: =IF($A$5>A139,0,IF(A139>$A$6,1,(F139+1)/$H$5+G138)) -> 1 | H139: 133
A140: 134 | B140: discursive | C140: Passing aimlessly from one subject to another; digressive, rambling; 2. Proceeding by reasoning or argument; not intuitive | F140: 0 | G140: 1 | H140: 134
A141: 135 | B141: remora | C141: 1. Any of a family (Echeneidae) of marine bony fishes that have the anterior dorsal fin modified into a suctorial disk on the head by means of which they adhere especially to other fishes; 2. Hinderance, drag | F141: 0 | G141: 1 | H141: 135
A142: 136 | B142: coenobite | C142: A member of a religious order living in a convent or monastary--As opposed to anchorite--"To the --itic refuge of a small hotel." | E142: (cenobite, coenobitic) | F142: 0 | G142: 1 | H142: 136
A143: 137 | B143: cogent | C143: Convincing or believable by virtue of forcible, clear presentation; To the point, relevant | D143: L. | F143: 0 | G143: 1 | H143: 137
A144: 138 | B144: funicle | C144: A little cord or fibre | E144: fū' ni kl' | F144: 0 | G144: 1 | H144: 138
A145: 139 | B145: ontogeny | C145: Life cycle or development of a single organism, organization | F145: 0 | G145: 1 | H145: 139
A146: 140 | B146: expatiate | C146: 1. To enlarge in discourse or writing; be copious in description or discussion: "to -- a theme;" 2. To move or wander about intellectually, imaginately, etc. without restraint | F146: 0 | G146: 1 | H146: 140
A147: 141 | B147: incunabula | C147: 1. The very first stages of anything; infancy; beginnings; 2. Early printed books, esp. pre 1500 | D147: L. A cradle | E147: in' kyoo nab' yoo lə | F147: 0 | G147: 1 | H147: 141
A148: 142 | B148: oleaginous | C148: Having the nature or qualities of oil; oily or unctuous | F148: 0 | G148: 1 | H148: 142
A149: 143 | B149: usufruct | C149: In Roman and civil law, the right of using and enjoying all the advantages and profits of the property of another without altering or damaging the substance: "Of these things I have only the --." | E149: ū' zyoo frukt | F149: 0 | G149: 1 | H149: 143
A150: 144 | B150: hoyden | C150: A bold, boisterous girl, tomboy: "A proud, young -- of a bride." | F150: 0 | G150: 1 | H150: 144
A151: 145 | B151: miscreant | C151: adj. Villainous; evil; n. 1. (archaic) Unbelieving, heretical, infidel; 2. An evil person, villain, criminal | F151: 0 | G151: 1 | H151: 145
A152: 146 | B152: donzel | C152: [obs.] A young gentleman who attended upon a knight; squire; "dressed, be-powered like a New York --." | E152: don' zl | F152: 0 | G152: 1 | H152: 146
A153: 147 | B153: tractable | C153: Easily led | F153: 0 | G153: 1 | H153: 147
A154: 148 | B154: doxology | C154: A hymn or form of words containing an ascription of praise to God | F154: 0 | G154: 1 | H154: 148
A155: 149 | B155: corban | C155: Chiefly biblical. An offering of any kind made to God, esp. in fulfillment of a vow (Heb. lit. a drawing near) | E155: <Heb. gor bān | F155: 0 | G155: 1 | H155: 149
A156: 150 | B156: froward | C156: 1. Willfully contrary; refractory; fractious; 2. [obs.] Adverse, unfavorable | F156: 0 | G156: 1 | H156: 150
A157: 151 | B157: menhir | C157: A single, upright, rude monolith; usually of prehistoric origin | F157: 0 | G157: 1 | H157: 151
A158: 152 | B158: miniver | C158: In midieval times a kind of white or gray fur used for trimming garmets; 2. Any kind of white fur, especially white ermine | D158: n. | F158: 0 | G158: 1 | H158: 152
A159: 153 | B159: isonomy | C159: Equality of political rights | F159: 0 | G159: 1 | H159: 153
A160: 154 | B160: ineluctable | C160: Not to be avoided, changed or resisted; inevitable | F160: 0 | G160: 1 | H160: 154
A161: 155 | B161: canon | C161: Standard used in judging, law | F161: 0 | G161: 1 | H161: 155
A162: 156 | B162: aegis | C162: 1. Shield or breastplate of a Greek god. 2. Protection, sponsorship | D162: n. | E162: ē jis | F162: 0 | G162: 1 | H162: 156
A163: 157 | B163: scrofula | C163: Tuberculosis of the lymph glands, especially the neck; enlargement and degeneration | F163: 0 | G163: 1 | H163: 157
A164: 158 | B164: advowson | C164: in English law the right to name the holder of a church benefice - "owned the *** of a living" | E164: AD VOW' ZN | F164: 0 | G164: 1 | H164: 158
A165: 159 | B165: animus | C165: An animating force, an intention, a grudge | F165: 0 | G165: 1 | H165: 159
A166: 160 | B166: jeroboam | C166: Large, champaign bottle, .7 gal. | F166: 0 | G166: 1 | H166: 160
A167: 161 | B167: plus fours | C167: Long knickers for athletics | F167: 0 | G167: 1 | H167: 161
A168: 162 | B168: gibbet | C168: n. 1. A gallows v.t. 2. To execute by hanging; 3. To expose to public scorn | E168: jib' it <gibb a forked stick | F168: 0 | G168: 1 | H168: 162
A169: 163 | B169: descry | C169: To make out by looking carefully, discern, to perceive, detect | F169: 0 | G169: 1 | H169: 163
A170: 164 | B170: praxis | C170: 1. Practice, distinguished from theory; 2. Established custom; 3. Set of examples or exercises as in a grammer | F170: 0 | G170: 1 | H170: 164
A171: 165 | B171: poniard | C171: A dagger | E171: pon' yard | F171: 0 | G171: 1 | H171: 165
A172: 166 | B172: enmity | C172: The attitude or feelings of an enemy; latent hostility | F172: 0 | G172: 1 | H172: 166
A173: 167 | B173: regolith | C173: mantle rock; the layer of disintegrated and decomposed rock fragments, including soil, just above the solid rock of the earth's crust | F173: 0 | G173: 1 | H173: 167
A174: 168 | B174: subtends | C174: To form or mark the boundary of; (Geom.) To extend under or be opposite to | F174: 0 | G174: 1 | H174: 168
A175: 169 | B175: pathological | C175: Conditions or results of a disease | F175: 0 | G175: 1 | H175: 169
A176: 170 | B176: egregious | C176: Outstanding for undesirable qualities; remarkably bad; flagrant | F176: 0 | G176: 1 | H176: 170
A177: 171 | B177: supercilious | C177: Haughtily disdainful or contemptuous, as a person, expression: "I could see by his -- manner that he considered us unworthy of his company." | D177: adj. | E177: sōō pər sil' ēəs | F177: 0 | G177: 1 | H177: 171
A178: 172 | B178: ingleside | C178: Fireside | F178: 0 | G178: 1 | H178: 172
A179: 173 | B179: trope | C179: Any literary device as metaphor, metonymy, synechdoche, and irony which consists in the use of words in other than their literal sense | F179: 0 | G179: 1 | H179: 173
A180: 174 | B180: ribald | C180: Offensive, irreverent or vulgar | F180: 0 | G180: 1 | H180: 174
A181: 175 | B181: sanguine | C181: Blood colored, ruddy of complexionn; cheerful, optimistic, confident | F181: 0 | G181: 1 | H181: 175
A182: 176 | B182: flibbertigibbet | C182: A chattering or flighty, light-headed person, usually a woman | E182: (-jib-) | F182: 0 | G182: 1 | H182: 176
A183: 177 | B183: enfilade | C183: A position of troops, works, etc. making them subject to a sweeping fire from along the length of a line of troops, battery, etc.; An axial arrangement of mirrors on either side of a room; An axial arrangement of a suite of rooms | D183: Fr & Latin; to thread, string | F183: 0 | G183: 1 | H183: 177
A184: 178 | B184: languid | C184: 1. Drooping or flagging with weakness or fatigue, faint; 2. Lacking in vigor or vitality; slack; 3. Lacking in spirit or interest; indifferent | F184: 0 | G184: 1 | H184: 178
A185: 179 | B185: crepuscular | C185: Twighlight, dim, indistinct | F185: 0 | G185: 1 | H185: 179
A186: 180 | B186: flippant | C186: 1. Glib, talkative; 2. Frivolous, disrespectful, saucy, impertenent | F186: 0 | G186: 1 | H186: 180
A187: 181 | B187: desultory | C187: Jumping from one thing to another; disconnected, non-methodical, random (L. vaulter, jumper)--"A -- greeting" | E187: des' l-tôr' i | F187: 0 | G187: 1 | H187: 181
A188: 182 | B188: koan | C188: Zen. A nonsensical question to a student for which an answer is demanded, the stress of meditation on the question often being illuminating | E188: kō' on | F188: 0 | G188: 1 | H188: 182
A189: 183 | B189: hebetude | C189: Lethargy, dulling | F189: 0 | G189: 1 | H189: 183
A190: 184 | B190: discomfit | C190: Originally to defeat; overthrow; put to flight; hence; 2. To overthrow the plans or expectations of, to thwart; frustrate; 3. To make uneasy; confuse; disconcert (embarrass, syn.) "Theory so elastic that no hypothesis could ever be invalidated and no therapist ever --ed." | D190: v.t. | F190: 0 | G190: 1 | H190: 184
A191: 185 | B191: fugitive | C191: Someone who flees from justice; Also, passing quickly away, not permanent, ephemeral or evanescent--Having to do with matters of temporary interest | F191: 0 | G191: 1 | H191: 185
A192: 186 | B192: prodigal | C192: adj. Wastefully or recklessly extravagant; n. One who spends with extravagance | F192: 0 | G192: 1 | H192: 186
A193: 187 | B193: latterly | C193: Of late; lately; recently | D193: adj. | F193: 0 | G193: 1 | H193: 187
A194: 188 | B194: sibyl | C194: 1. Any of certain women of antiquity reputed to posses powers of prophecy or divination; 2. a prophetess or witch | F194: 0 | G194: 1 | H194: 188
A195: 189 | B195: anathema | C195: Greatly detested, damned, banished, forbidden | F195: 0 | G195: 1 | H195: 189
A196: 190 | B196: nugatory | C196: Trifling, worthless; not operative, invalid | F196: 0 | G196: 1 | H196: 190
A197: 191 | B197: hagiography | C197: The writing or study of the lives of the saints: "There is still no good biography of Chiang Kai-Shek (just some works of --)." | F197: 0 | G197: 1 | H197: 191
A198: 192 | B198: regnant | C198: 1. Reigning, ruling; 2. predominant; 3. prevalent, widespread | F198: 0 | G198: 1 | H198: 192
A199: 193 | B199: profligacy | C199: 1. Shameless dissoluteness; 2. Reckless extravagence; 3. Great abundance | F199: 0 | G199: 1 | H199: 193
A200: 194 | B200: desquamate | C200: To come off in scales as the skin in certain diseases (path.) | F200: 0 | G200: 1 | H200: =A200 -> 194
A201: =1+A200 -> 195 | B201: lucubration | C201: 1. Laborious work, study, etc., esp. at night; 2. The result of such activity, as a learned speech, dissertation; 3. Often, --s, any literary effort, esp. of a pretentious or solemn nature | F201: 0 | G201: 1 | H201: 195
A202: 196 | B202: anility | C202: The state of being an old woman, infirm, weak | F202: 0 | G202: 1 | H202: 196
A203: 197 | B203: eupepsia | C203: Good digestion | F203: 0 | G203: =IF($A$5>A203,0,IF(A203>$A$6,1,(F203+1)/$H$5+G202)) -> 1 | H203: 197
... 2806 more rows

Sheet Specialized
A4: 2999 | B4: =[1]Drill!M12 -> â = `; ə = 1; ā = 2; ē = 3; ī = 4; ō = 5 | C4: =[1]Drill!Q12 -> ä = 6; ô = 7; ū = 8; ŭ = 9; û = 0 | H4: Range Sum
A5: =IF(ISNUMBER(Select!E7),IF(Select!E7>1,IF(Select!E7>A4,1,IF(Select!E8<=Select!E7,1,Select!E7)),1),1) -> 1 | B5: =Drill!M3 -> Word | C5: =Drill!M4 -> Meaning | D5: =Drill!M3&" Hints" -> Word Hints | E5: =Drill!M4&" Hints" -> Meaning Hints | F5: Delta | G5: Range Cum. | H5: =SUM(OFFSET(Adjusts2,A5-1,0,A6-A5+1,1))+A6-A5+1 -> 10 | M5: =Drill!M5 -> Character: | N5: =Drill!N5 -> 0 | O5: =Drill!O5 -> ə | P5: =Drill!P5 -> ā | Q5: =Drill!Q5 -> ē | R5: =Drill!R5 -> ī | S5: =Drill!S5 -> ō | T5: =Drill!T5 -> ä | U5: =Drill!U5 -> ô | V5: =Drill!V5 -> ū | W5: =Drill!W5 -> ŭ | X5: =Drill!X5 -> ə | Y5: =Drill!Y5 -> ā | Z5: =Drill!Z5 -> ē | AA5: =Drill!AA5 -> ī | AB5: =Drill!AB5 -> ō | AC5: =Drill!AC5 -> ä | AD5: =Drill!AD5 -> ô | AE5: =Drill!AE5 -> ū | AF5: =Drill!AF5 -> ŭ | AG5: =Drill!AG5 -> ə | AH5: =Drill!AH5 -> ā | AI5: =Drill!AI5 -> ē | AJ5: =Drill!AJ5 -> ī | AK5: =Drill!AK5 -> ō | AL5: =Drill!AL5 -> ä | AM5: =Drill!AM5 -> ô | AN5: =Drill!AN5 -> ū | AO5: =Drill!AO5 -> ŭ | AP5: =Drill!AP5 -> ə | AQ5: =Drill!AQ5 -> ā | AR5: =Drill!AR5 -> ē | AS5: =Drill!AS5 -> ī | AT5: =Drill!AT5 -> ō | AU5: =Drill!AU5 -> ä | AV5: =Drill!AV5 -> ô | AW5: =Drill!AW5 -> ū | AX5: =Drill!AX5 -> ŭ
A6: =IF(ISNUMBER(Select!E8),IF(Select!E8>A4,B6,IF(Select!E8<=A5,B6,IF(Select!E8>B6,B6,Select!E8))),B6) -> 10 | B6: =A4-COUNTBLANK(B7:B3005) -> 50 | F6: Add to 100% | G6: 0 | H6: 0 | M6: =Drill!M6 -> Code: | N6: =Drill!N6 -> 0 | O6: =Drill!O6 -> 1 | P6: =Drill!P6 -> 2 | Q6: =Drill!Q6 -> 3 | R6: =Drill!R6 -> 4 | S6: =Drill!S6 -> 5 | T6: =Drill!T6 -> 6 | U6: =Drill!U6 -> 7 | V6: =Drill!V6 -> 8 | W6: =Drill!W6 -> 9 | X6: =Drill!X6 -> 1 | Y6: =Drill!Y6 -> 2 | Z6: =Drill!Z6 -> 3 | AA6: =Drill!AA6 -> 4 | AB6: =Drill!AB6 -> 5 | AC6: =Drill!AC6 -> 6 | AD6: =Drill!AD6 -> 7 | AE6: =Drill!AE6 -> 8 | AF6: =Drill!AF6 -> 9 | AG6: =Drill!AG6 -> 1 | AH6: =Drill!AH6 -> 2 | AI6: =Drill!AI6 -> 3 | AJ6: =Drill!AJ6 -> 4 | AK6: =Drill!AK6 -> 5 | AL6: =Drill!AL6 -> 6 | AM6: =Drill!AM6 -> 7 | AN6: =Drill!AN6 -> 8 | AO6: =Drill!AO6 -> 9 | AP6: =Drill!AP6 -> 1 | AQ6: =Drill!AQ6 -> 2 | AR6: =Drill!AR6 -> 3 | AS6: =Drill!AS6 -> 4 | AT6: =Drill!AT6 -> 5 | AU6: =Drill!AU6 -> 6 | AV6: =Drill!AV6 -> 7 | AW6: =Drill!AW6 -> 8 | AX6: =Drill!AX6 -> 9
A7: =1 -> 1 | B7: ahimsa | C7: Hinduism. The principle of nonviolence: "...achieved through --." | D7: n. | E7: ə him' sä | F7: 0 | G7: =IF(OR($A$5>A7,A7>$A$6),0,(F7+1)/$H$5+G6) -> 0.1 | H7: =A7 -> 1
A8: =1+A7 -> 2 | B8: allometry | C8: The study of the size of the individual organs relative to the size of the whole body | F8: 0 | G8: =IF(OR($A$5>A8,A8>$A$6),0,(F8+1)/$H$5+G7) -> 0.2 | H8: =A8 -> 2
A9: =1+A8 -> 3 | B9: anacoluthan | C9: Change from one grammatical construction to the next within the same sentence: "A man, young lady! Lady, such a man as all the world--why he's a man of wax!" | D9: Greek | F9: 0 | G9: =IF(OR($A$5>A9,A9>$A$6),0,(F9+1)/$H$5+G8) -> 0.3 | H9: 3 | M9: =Drill!M9 -> Step trans: | N9: 1456 | O9: =IF(ISERR(FIND(O6,N9)),N9,LEFT(N9,FIND(O6,N9)-1)&O5&MID(N9,FIND(O6,N9)+1,LEN(N9))) -> ə456 | P9: =IF(ISERR(FIND(P6,O9)),O9,LEFT(O9,FIND(P6,O9)-1)&P5&MID(O9,FIND(P6,O9)+1,LEN(O9))) -> ə456 | Q9: ə456 | R9: əī56 | S9: əīō6 | T9: əīōä | U9: əīōä | V9: əīōä | W9: əīōä | X9: əīōä | Y9: əīōä | Z9: əīōä | AA9: əīōä | AB9: əīōä | AC9: əīōä | AD9: əīōä | AE9: əīōä | AF9: əīōä | AG9: əīōä | AH9: əīōä | AI9: əīōä | AJ9: əīōä | AK9: əīōä | AL9: əīōä | AM9: əīōä | AN9: əīōä | AO9: əīōä | AP9: əīōä | AQ9: əīōä | AR9: əīōä | AS9: əīōä | AT9: əīōä | AU9: əīōä | AV9: əīōä | AW9: əīōä | AX9: əīōä
A10: 4 | B10: anamorphosis | C10: A drawing presenting a distorted image which appears in natural form under certain conditions as when viewed at a raking angle or reflected from a curved mirroir | F10: 0 | G10: =IF($A$5>A10,0,IF(A10>$A$6,1,(F10+1)/$H$5+G9)) -> 0.4 | H10: 4 | M10: =Drill!M10 -> W/char: | N10: =IF(N9=0,"",IF(AX9=0,"",AX9)) -> əīōä
A11: 5 | B11: antifon | C11: A hymn, psalm, etc. chanted or sung in responsive, alternating parts | D11: n. | F11: 0 | G11: =IF($A$5>A11,0,IF(A11>$A$6,1,(F11+1)/$H$5+G10)) -> 0.5 | H11: 5
A12: 6 | B12: antistrophe | C12: The repetition of words in reverse order; repetition of a word at the end of successive clauses | F12: 0 | G12: 0.6 | H12: 6
A13: 7 | B13: arculation | C13: The use of arches in buildings | F13: 0 | G13: 0.7 | H13: 7
A14: 8 | B14: armiger | C14: (< to carry arms) - orig. an armor carrier for a knight, squire - 2. A person ranking next to a knight and entitled to a coat of arms ' "Impoverished Welsh gentry unambiguously ***ous" | D14: m. | E14: ar' mi jer | F14: 0 | G14: 0.8 | H14: 8
A15: 9 | B15: asphodel | C15: A type of lily, also a dafodil | F15: 0 | G15: 0.9 | H15: 9
A16: 10 | B16: autotroph | C16: Organism able to utilize carbon dioxide as its only source of carbon, like algae | D16: n. | E16: ô' tə trof' | F16: 0 | G16: 1 | H16: 10
A17: 11 | B17: baldachin | C17: A silk brocade interwoven with gold or silver threads, used chiefly for ceremonial purposes; 2. A permanent ornamental canopy as above a free-standing alter or tomb | E17: bal' də kin, bôl' | F17: 0 | G17: 1 | H17: 11
A18: 12 | B18: balestra | C18: (fencing) A jump toward an opponent followed immediately by a lunge | F18: 0 | G18: 1 | H18: 12
A19: 13 | B19: birefringence | C19: Double refraction | D19: n. | F19: 0 | G19: 1 | H19: 13
A20: 14 | B20: caesura | C20: A break, esp. a sense pause, usually near the middle of a verse as in "know thyself ||preseume not God to scan." | F20: 0 | G20: 1 | H20: 14
A21: 15 | B21: chirsmus | C21: A reversal in the order of words in two otherwise parallel phrases: "He went to the country; to the town whent she." | D21: n. pl. (Rhet.) | F21: 0 | G21: 1 | H21: 15
A22: 16 | B22: chyme | C22: The semifluid mass into which food is converted, passing from stomach to small intesting | D22: n. | E22: kīm | F22: 0 | G22: 1 | H22: 16
A23: 17 | B23: coccyx | C23: A small triangular bone forming the lower extremity of the spinal column in man, consisting four ankylosed (grown together) rudimentary vertebrae | E23: kok' siks | F23: 0 | G23: 1 | H23: 17
A24: 18 | B24: conciliarism | C24: Theory of church government that places authority with councils rather than with the papacy | F24: 0 | G24: 1 | H24: 18
A25: 19 | B25: cretonne | C25: A heavy unglazed cotton or linen cloth with patterns printed in color on one or both sides--Used for curtains, chair covers | E25: kri ton' | F25: 0 | G25: 1 | H25: 19
A26: 20 | B26: dahabiah | C26: A large passenger boat used on the Nile formerly with lateen sails | E26: dä' hə bē' ə | F26: 0 | G26: 1 | H26: 20
A27: 21 | B27: dehiscence | C27: The natural bursting open of capsules, fruits, anthers, etc., for the discharge of their contents | F27: 0 | G27: 1 | H27: 21
A28: 22 | B28: deictic | C28: In grammar, pointing out; demonstrative; as, 'that' is a deictic pronoun--in logic, proving directly opposed to elenctic (refuting) | D28: adj. | E28: dīk' tic | F28: 0 | G28: 1 | H28: 22
A29: 23 | B29: demulcent | C29: A medicine or ointment that counteracts the irritation of inflamed surfaces | D29: n. | F29: 0 | G29: 1 | H29: 23
A30: 24 | B30: deodar | C30: A large Himalayan cedar | F30: 0 | G30: 1 | H30: 24
A31: 25 | B31: fardel | C31: [Archaic] bundle or burden | F31: 0 | G31: 1 | H31: 25
A32: 26 | B32: gongoristic | C32: Imitative of the ornate and intricate style of Gōngara Argote- Sp. Poet (1561-1627) "-- verbage..." | F32: 0 | G32: 1 | H32: 26
A33: 27 | B33: metonymy | C33: The use of the name of one object or concept for that of another to which it is related, or of which it is part: The bottle for strong drink; count noses for count people | E33: mi ton' ə mē | F33: 0 | G33: 1 | H33: 27
A34: 28 | B34: monody | C34: Greek poem sung by a single voice, lament, in music, a solo as opposed to polyphony | F34: 0 | G34: 1 | H34: 28
A35: 29 | B35: neurasthenia | C35: Nervous debility and exhaustion as from overwork or prolonged mental strain, characterized by vague complaints or a physical nature in the absence of objectively present causes or lesions; nervous prostration, nervous breakdown | D35: Pathol. | E35: thē' neah | F35: 0 | G35: 1 | H35: 29
A36: 30 | B36: plotinus | C36: Roman philosopher, born in Egypt; lived 205: 270 AD; neoplatonist | E36: plō tī nəs | F36: 0 | G36: 1 | H36: 30
A37: 31 | B37: samite | C37: A heavy silk fabric worn in the middle ages; sometimes interwoven with gold | F37: 0 | G37: 1 | H37: 31
A38: 32 | B38: aposiopesis | C38: A sudden breaking off in the midst of a sentence, as if from inability or unwillingness to proceed | E38: ap' ə sī' ə pē' sis | F38: 0 | G38: 1 | H38: 32
A39: 33 | B39: calyx | C39: The outermost group of floral parts, usually green; the sepals | E39: GK husk, covering | F39: 0 | G39: 1 | H39: 33
A40: 34 | B40: laterite | C40: Geol. 1. A reddish ferruginous soil formed in tropical regions by the decompositon of the underlying rocks; 2. A similar soil formed of materials deposited by water; 3. Any soil produced by the decomposition of the rocks beneath it | F40: 0 | G40: 1 | H40: 34
A41: 35 | B41: ostinato | C41: A constantly recurring melodic fragment | E41: os' ti nā' tō | F41: 0 | G41: 1 | H41: 35
A42: 36 | B42: pentadactyl | C42: 1. Having five digits on each hand or foot; 2. Having five finger-like projections or parts | F42: 0 | G42: 1 | H42: 36
A43: 37 | B43: coulisse | C43: 1. A timber or the like having a groove for guiding a sliding panel; 2. Theat. a. the space between two wing flats, leg drops, or the like; b. any space or area backstage | E43: kōō lēs' | F43: 0 | G43: 1 | H43: 37
A44: 38 | B44: goffer | C44: 1. n. an ornamental plaiting used for frills and borders, as on women's caps. 2. v.t. to flute (a frill, ruffle, etc.) as with a heated iron | E44: gof' ər | F44: 0 | G44: 1 | H44: 38
A45: 39 | B45: gormless | C45: Brit. Informal witless; senseless; stupid | F45: 0 | G45: 1 | H45: 39
A46: 40 | B46: drugget | C46: 1. Also called India drugget. A rug from India of coarse hair with cotton or jute; 2. Obs. A fabric woven wholly or partly of wool, used for clothing | F46: 0 | G46: 1 | H46: 40
A47: 41 | B47: paynim | C47: Archaic. 1. A pagan or heathen; 2. A Muslim | F47: 0 | G47: 1 | H47: 41
A48: 42 | B48: caracole | C48: A half turn executed by a horseman in riding | F48: 0 | G48: 1 | H48: 42
A49: 43 | B49: strabismus | C49: Opthalm. A disorder of vision due to the turning of one eye or both eyes from the normal position so that both cannot be directed at the same point or object at the same time; squint; cross-eye | F49: 0 | G49: 1 | H49: 43
A50: 44 | B50: sempiternal | C50: Literary ever-lasting, eternal | E50: sem'pi tûr' nəl | F50: 0 | G50: 1 | H50: 44
A51: 45 | B51: glabrous | C51: Zool., Bot. smooth or bald; having a surface devoid of hair or pubescence | D51: adj. | F51: 0 | G51: 1 | H51: 45
A52: 46 | B52: descant | C52: n. 1. Music a. a melody or counterpoint accompanying a simple musical theme and usually written above it; b. (in part music) the soprano; c. a song or melody. 2. a variation upon anything; comment on a subject--v.i. to sing; 4. to comment or discourse at great length | F52: 0 | G52: 1 | H52: 46
A53: 47 | B53: viridian | C53: A long-lasting, bluish-green pigment, consisting of a hydrated oxide of chromium | F53: 0 | G53: 1 | H53: 47
A54: 48 | B54: boffin | C54: A science or technical expert | D54: Brit. Slang | F54: 0 | G54: 1 | H54: 48
A55: 49 | B55: caliginous | C55: Misty, dim, dark | D55: Archaic | E55: kə lij' ə nəs | F55: 0 | G55: 1 | H55: 49
A56: 50 | B56: perspicuous | C56: 1. Clear to the understanding; 2. clear in expression or statement, lucid; 3. perspicacious | F56: 0 | G56: 1 | H56: 50
A57: 51 | F57: 0 | G57: 1 | H57: 51
A58: 52 | F58: 0 | G58: 1 | H58: 52
A59: 53 | F59: 0 | G59: 1 | H59: 53
A60: 54 | F60: 0 | G60: 1 | H60: 54
A61: 55 | F61: 0 | G61: 1 | H61: 55
A62: 56 | F62: 0 | G62: 1 | H62: 56
A63: 57 | F63: 0 | G63: 1 | H63: 57
A64: 58 | F64: 0 | G64: 1 | H64: 58
A65: 59 | F65: 0 | G65: 1 | H65: 59
A66: 60 | F66: 0 | G66: 1 | H66: 60
A67: 61 | F67: 0 | G67: 1 | H67: 61
A68: 62 | F68: 0 | G68: 1 | H68: 62
A69: 63 | F69: 0 | G69: 1 | H69: 63
A70: 64 | F70: 0 | G70: 1 | H70: 64
A71: 65 | F71: 0 | G71: 1 | H71: 65
A72: 66 | F72: 0 | G72: 1 | H72: =A72 -> 66
A73: =1+A72 -> 67 | F73: 0 | G73: 1 | H73: 67
A74: 68 | F74: 0 | G74: 1 | H74: 68
A75: 69 | F75: 0 | G75: =IF($A$5>A75,0,IF(A75>$A$6,1,(F75+1)/$H$5+G74)) -> 1 | H75: 69
A76: 70 | F76: 0 | G76: 1 | H76: 70
A77: 71 | F77: 0 | G77: 1 | H77: 71
A78: 72 | F78: 0 | G78: 1 | H78: 72
A79: 73 | F79: 0 | G79: 1 | H79: 73
A80: 74 | F80: 0 | G80: 1 | H80: 74
A81: 75 | F81: 0 | G81: 1 | H81: 75
A82: 76 | F82: 0 | G82: 1 | H82: 76
A83: 77 | F83: 0 | G83: 1 | H83: 77
A84: 78 | F84: 0 | G84: 1 | H84: 78
A85: 79 | F85: 0 | G85: 1 | H85: 79
A86: 80 | F86: 0 | G86: 1 | H86: 80
A87: 81 | F87: 0 | G87: 1 | H87: 81
A88: 82 | F88: 0 | G88: 1 | H88: 82
A89: 83 | F89: 0 | G89: 1 | H89: 83
A90: 84 | F90: 0 | G90: 1 | H90: 84
A91: 85 | F91: 0 | G91: 1 | H91: 85
A92: 86 | F92: 0 | G92: 1 | H92: 86
A93: 87 | F93: 0 | G93: 1 | H93: 87
A94: 88 | F94: 0 | G94: 1 | H94: 88
A95: 89 | F95: 0 | G95: 1 | H95: 89
A96: 90 | F96: 0 | G96: 1 | H96: 90
A97: 91 | F97: 0 | G97: 1 | H97: 91
A98: 92 | F98: 0 | G98: 1 | H98: 92
A99: 93 | F99: 0 | G99: 1 | H99: 93
A100: 94 | F100: 0 | G100: 1 | H100: 94
A101: 95 | F101: 0 | G101: 1 | H101: 95
A102: 96 | F102: 0 | G102: 1 | H102: 96
A103: 97 | F103: 0 | G103: 1 | H103: 97
A104: 98 | F104: 0 | G104: 1 | H104: 98
A105: 99 | F105: 0 | G105: 1 | H105: 99
A106: 100 | F106: 0 | G106: 1 | H106: 100
A107: 101 | F107: 0 | G107: 1 | H107: 101
A108: 102 | F108: 0 | G108: 1 | H108: 102
A109: 103 | F109: 0 | G109: 1 | H109: 103
A110: 104 | F110: 0 | G110: 1 | H110: 104
A111: 105 | F111: 0 | G111: 1 | H111: 105
A112: 106 | F112: 0 | G112: 1 | H112: 106
A113: 107 | F113: 0 | G113: 1 | H113: 107
A114: 108 | F114: 0 | G114: 1 | H114: 108
A115: 109 | F115: 0 | G115: 1 | H115: 109
A116: 110 | F116: 0 | G116: 1 | H116: 110
A117: 111 | F117: 0 | G117: 1 | H117: 111
A118: 112 | F118: 0 | G118: 1 | H118: 112
A119: 113 | F119: 0 | G119: 1 | H119: 113
A120: 114 | F120: 0 | G120: 1 | H120: 114
A121: 115 | F121: 0 | G121: 1 | H121: 115
A122: 116 | F122: 0 | G122: 1 | H122: 116
A123: 117 | F123: 0 | G123: 1 | H123: 117
A124: 118 | F124: 0 | G124: 1 | H124: 118
A125: 119 | F125: 0 | G125: 1 | H125: 119
A126: 120 | F126: 0 | G126: 1 | H126: 120
A127: 121 | F127: 0 | G127: 1 | H127: 121
A128: 122 | F128: 0 | G128: 1 | H128: 122
A129: 123 | F129: 0 | G129: 1 | H129: 123
A130: 124 | F130: 0 | G130: 1 | H130: 124
A131: 125 | F131: 0 | G131: 1 | H131: 125
A132: 126 | F132: 0 | G132: 1 | H132: 126
A133: 127 | F133: 0 | G133: 1 | H133: 127
A134: 128 | F134: 0 | G134: 1 | H134: 128
A135: 129 | F135: 0 | G135: 1 | H135: 129
A136: 130 | F136: 0 | G136: 1 | H136: =A136 -> 130
A137: =1+A136 -> 131 | F137: 0 | G137: 1 | H137: 131
A138: 132 | F138: 0 | G138: 1 | H138: 132
A139: 133 | F139: 0 | G139: =IF($A$5>A139,0,IF(A139>$A$6,1,(F139+1)/$H$5+G138)) -> 1 | H139: 133
A140: 134 | F140: 0 | G140: 1 | H140: 134
A141: 135 | F141: 0 | G141: 1 | H141: 135
A142: 136 | F142: 0 | G142: 1 | H142: 136
A143: 137 | F143: 0 | G143: 1 | H143: 137
A144: 138 | F144: 0 | G144: 1 | H144: 138
A145: 139 | F145: 0 | G145: 1 | H145: 139
A146: 140 | F146: 0 | G146: 1 | H146: 140
A147: 141 | F147: 0 | G147: 1 | H147: 141
A148: 142 | F148: 0 | G148: 1 | H148: 142
A149: 143 | F149: 0 | G149: 1 | H149: 143
A150: 144 | F150: 0 | G150: 1 | H150: 144
A151: 145 | F151: 0 | G151: 1 | H151: 145
A152: 146 | F152: 0 | G152: 1 | H152: 146
A153: 147 | F153: 0 | G153: 1 | H153: 147
A154: 148 | F154: 0 | G154: 1 | H154: 148
A155: 149 | F155: 0 | G155: 1 | H155: 149
A156: 150 | F156: 0 | G156: 1 | H156: 150
A157: 151 | F157: 0 | G157: 1 | H157: 151
A158: 152 | F158: 0 | G158: 1 | H158: 152
A159: 153 | F159: 0 | G159: 1 | H159: 153
A160: 154 | F160: 0 | G160: 1 | H160: 154
A161: 155 | F161: 0 | G161: 1 | H161: 155
A162: 156 | F162: 0 | G162: 1 | H162: 156
A163: 157 | F163: 0 | G163: 1 | H163: 157
A164: 158 | F164: 0 | G164: 1 | H164: 158
A165: 159 | F165: 0 | G165: 1 | H165: 159
A166: 160 | F166: 0 | G166: 1 | H166: 160
A167: 161 | F167: 0 | G167: 1 | H167: 161
A168: 162 | F168: 0 | G168: 1 | H168: 162
A169: 163 | F169: 0 | G169: 1 | H169: 163
A170: 164 | F170: 0 | G170: 1 | H170: 164
A171: 165 | F171: 0 | G171: 1 | H171: 165
A172: 166 | F172: 0 | G172: 1 | H172: 166
A173: 167 | F173: 0 | G173: 1 | H173: 167
A174: 168 | F174: 0 | G174: 1 | H174: 168
A175: 169 | F175: 0 | G175: 1 | H175: 169
A176: 170 | F176: 0 | G176: 1 | H176: 170
A177: 171 | F177: 0 | G177: 1 | H177: 171
A178: 172 | F178: 0 | G178: 1 | H178: 172
A179: 173 | F179: 0 | G179: 1 | H179: 173
A180: 174 | F180: 0 | G180: 1 | H180: 174
A181: 175 | F181: 0 | G181: 1 | H181: 175
A182: 176 | F182: 0 | G182: 1 | H182: 176
A183: 177 | F183: 0 | G183: 1 | H183: 177
A184: 178 | F184: 0 | G184: 1 | H184: 178
A185: 179 | F185: 0 | G185: 1 | H185: 179
A186: 180 | F186: 0 | G186: 1 | H186: 180
A187: 181 | F187: 0 | G187: 1 | H187: 181
A188: 182 | F188: 0 | G188: 1 | H188: 182
A189: 183 | F189: 0 | G189: 1 | H189: 183
A190: 184 | F190: 0 | G190: 1 | H190: 184
A191: 185 | F191: 0 | G191: 1 | H191: 185
A192: 186 | F192: 0 | G192: 1 | H192: 186
A193: 187 | F193: 0 | G193: 1 | H193: 187
A194: 188 | F194: 0 | G194: 1 | H194: 188
A195: 189 | F195: 0 | G195: 1 | H195: 189
A196: 190 | F196: 0 | G196: 1 | H196: 190
A197: 191 | F197: 0 | G197: 1 | H197: 191
A198: 192 | F198: 0 | G198: 1 | H198: 192
A199: 193 | F199: 0 | G199: 1 | H199: 193
A200: 194 | F200: 0 | G200: 1 | H200: =A200 -> 194
A201: =1+A200 -> 195 | F201: 0 | G201: 1 | H201: 195
A202: 196 | F202: 0 | G202: 1 | H202: 196
A203: 197 | F203: 0 | G203: =IF($A$5>A203,0,IF(A203>$A$6,1,(F203+1)/$H$5+G202)) -> 1 | H203: 197
... 2811 more rows

Sheet Set B
A4: 2999 | B4: =[1]Drill!M12 -> â = `; ə = 1; ā = 2; ē = 3; ī = 4; ō = 5 | C4: =[1]Drill!Q12 -> ä = 6; ô = 7; ū = 8; ŭ = 9; û = 0 | H4: Range Sum
A5: =IF(ISNUMBER(Select!E7),IF(Select!E7>1,IF(Select!E7>A4,1,IF(Select!E8<=Select!E7,1,Select!E7)),1),1) -> 1 | B5: =Drill!M3 -> Word | C5: =Drill!M4 -> Meaning | D5: =Drill!M3&" Hints" -> Word Hints | E5: =Drill!M4&" Hints" -> Meaning Hints | F5: Delta | G5: Range Cum. | H5: =SUM(OFFSET(Adjusts3,A5-1,0,A6-A5+1,1))+A6-A5+1 -> 7 | M5: =Drill!M5 -> Character: | N5: =Drill!N5 -> 0 | O5: =Drill!O5 -> ə | P5: =Drill!P5 -> ā | Q5: =Drill!Q5 -> ē | R5: =Drill!R5 -> ī | S5: =Drill!S5 -> ō | T5: =Drill!T5 -> ä | U5: =Drill!U5 -> ô | V5: =Drill!V5 -> ū | W5: =Drill!W5 -> ŭ | X5: =Drill!X5 -> ə | Y5: =Drill!Y5 -> ā | Z5: =Drill!Z5 -> ē | AA5: =Drill!AA5 -> ī | AB5: =Drill!AB5 -> ō | AC5: =Drill!AC5 -> ä | AD5: =Drill!AD5 -> ô | AE5: =Drill!AE5 -> ū | AF5: =Drill!AF5 -> ŭ | AG5: =Drill!AG5 -> ə | AH5: =Drill!AH5 -> ā | AI5: =Drill!AI5 -> ē | AJ5: =Drill!AJ5 -> ī | AK5: =Drill!AK5 -> ō | AL5: =Drill!AL5 -> ä | AM5: =Drill!AM5 -> ô | AN5: =Drill!AN5 -> ū | AO5: =Drill!AO5 -> ŭ | AP5: =Drill!AP5 -> ə | AQ5: =Drill!AQ5 -> ā | AR5: =Drill!AR5 -> ē | AS5: =Drill!AS5 -> ī | AT5: =Drill!AT5 -> ō | AU5: =Drill!AU5 -> ä | AV5: =Drill!AV5 -> ô | AW5: =Drill!AW5 -> ū | AX5: =Drill!AX5 -> ŭ
A6: =IF(ISNUMBER(Select!E8),IF(Select!E8>A4,B6,IF(Select!E8<=A5,B6,IF(Select!E8>B6,B6,Select!E8))),B6) -> 7 | B6: =A4-COUNTBLANK(B7:B3005) -> 7 | F6: Add to 100% | G6: 0 | H6: 0 | M6: =Drill!M6 -> Code: | N6: =Drill!N6 -> 0 | O6: =Drill!O6 -> 1 | P6: =Drill!P6 -> 2 | Q6: =Drill!Q6 -> 3 | R6: =Drill!R6 -> 4 | S6: =Drill!S6 -> 5 | T6: =Drill!T6 -> 6 | U6: =Drill!U6 -> 7 | V6: =Drill!V6 -> 8 | W6: =Drill!W6 -> 9 | X6: =Drill!X6 -> 1 | Y6: =Drill!Y6 -> 2 | Z6: =Drill!Z6 -> 3 | AA6: =Drill!AA6 -> 4 | AB6: =Drill!AB6 -> 5 | AC6: =Drill!AC6 -> 6 | AD6: =Drill!AD6 -> 7 | AE6: =Drill!AE6 -> 8 | AF6: =Drill!AF6 -> 9 | AG6: =Drill!AG6 -> 1 | AH6: =Drill!AH6 -> 2 | AI6: =Drill!AI6 -> 3 | AJ6: =Drill!AJ6 -> 4 | AK6: =Drill!AK6 -> 5 | AL6: =Drill!AL6 -> 6 | AM6: =Drill!AM6 -> 7 | AN6: =Drill!AN6 -> 8 | AO6: =Drill!AO6 -> 9 | AP6: =Drill!AP6 -> 1 | AQ6: =Drill!AQ6 -> 2 | AR6: =Drill!AR6 -> 3 | AS6: =Drill!AS6 -> 4 | AT6: =Drill!AT6 -> 5 | AU6: =Drill!AU6 -> 6 | AV6: =Drill!AV6 -> 7 | AW6: =Drill!AW6 -> 8 | AX6: =Drill!AX6 -> 9
A7: =1 -> 1 | B7: garner | C7: n. 1. A place for storing grain; v.t. 2. To gather up and store; deposit in, or as in, a granary | F7: 0 | G7: =IF(OR($A$5>A7,A7>$A$6),0,(F7+1)/$H$5+G6) -> 0.1428571429 | H7: =A7 -> 1
A8: =1+A7 -> 2 | B8: cognitive characteristics | C8: Ability to logically combine, analyze, interpret and apply information symbols | F8: 0 | G8: =IF(OR($A$5>A8,A8>$A$6),0,(F8+1)/$H$5+G7) -> 0.2857142857 | H8: =A8 -> 2
A9: =1+A8 -> 3 | B9: tapis | C9: Tapestry, curtain, carpet: "Came on the --" is idiomatic for came under consideration or deliberation | F9: 0 | G9: =IF(OR($A$5>A9,A9>$A$6),0,(F9+1)/$H$5+G8) -> 0.4285714286 | H9: 3 | M9: =Drill!M9 -> Step trans: | N9: 123 | O9: =IF(ISERR(FIND(O6,N9)),N9,LEFT(N9,FIND(O6,N9)-1)&O5&MID(N9,FIND(O6,N9)+1,LEN(N9))) -> ə23 | P9: =IF(ISERR(FIND(P6,O9)),O9,LEFT(O9,FIND(P6,O9)-1)&P5&MID(O9,FIND(P6,O9)+1,LEN(O9))) -> əā3 | Q9: əāē | R9: əāē | S9: əāē | T9: əāē | U9: əāē | V9: əāē | W9: əāē | X9: əāē | Y9: əāē | Z9: əāē | AA9: əāē | AB9: əāē | AC9: əāē | AD9: əāē | AE9: əāē | AF9: əāē | AG9: əāē | AH9: əāē | AI9: əāē | AJ9: əāē | AK9: əāē | AL9: əāē | AM9: əāē | AN9: əāē | AO9: əāē | AP9: əāē | AQ9: əāē | AR9: əāē | AS9: əāē | AT9: əāē | AU9: əāē | AV9: əāē | AW9: əāē | AX9: əāē
A10: 4 | B10: premise | C10: To set forth beforehand as an introduction: "We might --..." | D10: as a verb | F10: 0 | G10: =IF($A$5>A10,0,IF(A10>$A$6,1,(F10+1)/$H$5+G9)) -> 0.5714285714 | H10: 4 | M10: =Drill!M10 -> W/char: | N10: =IF(N9=0,"",IF(AX9=0,"",AX9)) -> əāē
A11: 5 | B11: pusillanimous | C11: Cowardly, faint-hearted (L. Very small part of the animus-spirit) | F11: 0 | G11: =IF($A$5>A11,0,IF(A11>$A$6,1,(F11+1)/$H$5+G10)) -> 0.7142857143 | H11: 5
A12: 6 | B12: lissome | C12: 1. Supple, limbre, flexible; 2. Nimble, agile | E12: lis' əm (also lissom) | F12: 0 | G12: 0.8571428571 | H12: 6
A13: 7 | B13: peroration | C13: The concluding part of a speech; emphaic recapitualation | F13: 0 | G13: 1 | H13: 7
A14: 8 | F14: 0 | G14: 1 | H14: 8
A15: 9 | F15: 0 | G15: 1 | H15: 9
A16: 10 | F16: 0 | G16: 1 | H16: 10
A17: 11 | F17: 0 | G17: 1 | H17: 11
A18: 12 | F18: 0 | G18: 1 | H18: 12
A19: 13 | F19: 0 | G19: 1 | H19: 13
A20: 14 | F20: 0 | G20: 1 | H20: 14
A21: 15 | F21: 0 | G21: 1 | H21: 15
A22: 16 | F22: 0 | G22: 1 | H22: 16
A23: 17 | F23: 0 | G23: 1 | H23: 17
A24: 18 | F24: 0 | G24: 1 | H24: 18
A25: 19 | F25: 0 | G25: 1 | H25: 19
A26: 20 | F26: 0 | G26: 1 | H26: 20
A27: 21 | F27: 0 | G27: 1 | H27: 21
A28: 22 | F28: 0 | G28: 1 | H28: 22
A29: 23 | F29: 0 | G29: 1 | H29: 23
A30: 24 | F30: 0 | G30: 1 | H30: 24
A31: 25 | F31: 0 | G31: 1 | H31: 25
A32: 26 | F32: 0 | G32: 1 | H32: 26
A33: 27 | F33: 0 | G33: 1 | H33: 27
A34: 28 | F34: 0 | G34: 1 | H34: 28
A35: 29 | F35: 0 | G35: 1 | H35: 29
A36: 30 | F36: 0 | G36: 1 | H36: 30
A37: 31 | F37: 0 | G37: 1 | H37: 31
A38: 32 | F38: 0 | G38: 1 | H38: 32
A39: 33 | F39: 0 | G39: 1 | H39: 33
A40: 34 | F40: 0 | G40: 1 | H40: 34
A41: 35 | F41: 0 | G41: 1 | H41: 35
A42: 36 | F42: 0 | G42: 1 | H42: 36
A43: 37 | F43: 0 | G43: 1 | H43: 37
A44: 38 | F44: 0 | G44: 1 | H44: 38
A45: 39 | F45: 0 | G45: 1 | H45: 39
A46: 40 | F46: 0 | G46: 1 | H46: 40
A47: 41 | F47: 0 | G47: 1 | H47: 41
A48: 42 | F48: 0 | G48: 1 | H48: 42
A49: 43 | F49: 0 | G49: 1 | H49: 43
A50: 44 | F50: 0 | G50: 1 | H50: 44
A51: 45 | F51: 0 | G51: 1 | H51: 45
A52: 46 | F52: 0 | G52: 1 | H52: 46
A53: 47 | F53: 0 | G53: 1 | H53: 47
A54: 48 | F54: 0 | G54: 1 | H54: 48
A55: 49 | F55: 0 | G55: 1 | H55: 49
A56: 50 | F56: 0 | G56: 1 | H56: 50
A57: 51 | F57: 0 | G57: 1 | H57: 51
A58: 52 | F58: 0 | G58: 1 | H58: 52
A59: 53 | F59: 0 | G59: 1 | H59: 53
A60: 54 | F60: 0 | G60: 1 | H60: 54
A61: 55 | F61: 0 | G61: 1 | H61: 55
A62: 56 | F62: 0 | G62: 1 | H62: 56
A63: 57 | F63: 0 | G63: 1 | H63: 57
A64: 58 | F64: 0 | G64: 1 | H64: 58
A65: 59 | F65: 0 | G65: 1 | H65: 59
A66: 60 | F66: 0 | G66: 1 | H66: 60
A67: 61 | F67: 0 | G67: 1 | H67: 61
A68: 62 | F68: 0 | G68: 1 | H68: 62
A69: 63 | F69: 0 | G69: 1 | H69: 63
A70: 64 | F70: 0 | G70: 1 | H70: 64
A71: 65 | F71: 0 | G71: 1 | H71: 65
A72: 66 | F72: 0 | G72: 1 | H72: =A72 -> 66
A73: =1+A72 -> 67 | F73: 0 | G73: 1 | H73: 67
A74: 68 | F74: 0 | G74: 1 | H74: 68
A75: 69 | F75: 0 | G75: =IF($A$5>A75,0,IF(A75>$A$6,1,(F75+1)/$H$5+G74)) -> 1 | H75: 69
A76: 70 | F76: 0 | G76: 1 | H76: 70
A77: 71 | F77: 0 | G77: 1 | H77: 71
A78: 72 | F78: 0 | G78: 1 | H78: 72
A79: 73 | F79: 0 | G79: 1 | H79: 73
A80: 74 | F80: 0 | G80: 1 | H80: 74
A81: 75 | F81: 0 | G81: 1 | H81: 75
A82: 76 | F82: 0 | G82: 1 | H82: 76
A83: 77 | F83: 0 | G83: 1 | H83: 77
A84: 78 | F84: 0 | G84: 1 | H84: 78
A85: 79 | F85: 0 | G85: 1 | H85: 79
A86: 80 | F86: 0 | G86: 1 | H86: 80
A87: 81 | F87: 0 | G87: 1 | H87: 81
A88: 82 | F88: 0 | G88: 1 | H88: 82
A89: 83 | F89: 0 | G89: 1 | H89: 83
A90: 84 | F90: 0 | G90: 1 | H90: 84
A91: 85 | F91: 0 | G91: 1 | H91: 85
A92: 86 | F92: 0 | G92: 1 | H92: 86
A93: 87 | F93: 0 | G93: 1 | H93: 87
A94: 88 | F94: 0 | G94: 1 | H94: 88
A95: 89 | F95: 0 | G95: 1 | H95: 89
A96: 90 | F96: 0 | G96: 1 | H96: 90
A97: 91 | F97: 0 | G97: 1 | H97: 91
A98: 92 | F98: 0 | G98: 1 | H98: 92
A99: 93 | F99: 0 | G99: 1 | H99: 93
A100: 94 | F100: 0 | G100: 1 | H100: 94
A101: 95 | F101: 0 | G101: 1 | H101: 95
A102: 96 | F102: 0 | G102: 1 | H102: 96
A103: 97 | F103: 0 | G103: 1 | H103: 97
A104: 98 | F104: 0 | G104: 1 | H104: 98
A105: 99 | F105: 0 | G105: 1 | H105: 99
A106: 100 | F106: 0 | G106: 1 | H106: 100
A107: 101 | F107: 0 | G107: 1 | H107: 101
A108: 102 | F108: 0 | G108: 1 | H108: 102
A109: 103 | F109: 0 | G109: 1 | H109: 103
A110: 104 | F110: 0 | G110: 1 | H110: 104
A111: 105 | F111: 0 | G111: 1 | H111: 105
A112: 106 | F112: 0 | G112: 1 | H112: 106
A113: 107 | F113: 0 | G113: 1 | H113: 107
A114: 108 | F114: 0 | G114: 1 | H114: 108
A115: 109 | F115: 0 | G115: 1 | H115: 109
A116: 110 | F116: 0 | G116: 1 | H116: 110
A117: 111 | F117: 0 | G117: 1 | H117: 111
A118: 112 | F118: 0 | G118: 1 | H118: 112
A119: 113 | F119: 0 | G119: 1 | H119: 113
A120: 114 | F120: 0 | G120: 1 | H120: 114
A121: 115 | F121: 0 | G121: 1 | H121: 115
A122: 116 | F122: 0 | G122: 1 | H122: 116
A123: 117 | F123: 0 | G123: 1 | H123: 117
A124: 118 | F124: 0 | G124: 1 | H124: 118
A125: 119 | F125: 0 | G125: 1 | H125: 119
A126: 120 | F126: 0 | G126: 1 | H126: 120
A127: 121 | F127: 0 | G127: 1 | H127: 121
A128: 122 | F128: 0 | G128: 1 | H128: 122
A129: 123 | F129: 0 | G129: 1 | H129: 123
A130: 124 | F130: 0 | G130: 1 | H130: 124
A131: 125 | F131: 0 | G131: 1 | H131: 125
A132: 126 | F132: 0 | G132: 1 | H132: 126
A133: 127 | F133: 0 | G133: 1 | H133: 127
A134: 128 | F134: 0 | G134: 1 | H134: 128
A135: 129 | F135: 0 | G135: 1 | H135: 129
A136: 130 | F136: 0 | G136: 1 | H136: =A136 -> 130
A137: =1+A136 -> 131 | F137: 0 | G137: 1 | H137: 131
A138: 132 | F138: 0 | G138: 1 | H138: 132
A139: 133 | F139: 0 | G139: =IF($A$5>A139,0,IF(A139>$A$6,1,(F139+1)/$H$5+G138)) -> 1 | H139: 133
A140: 134 | F140: 0 | G140: 1 | H140: 134
A141: 135 | F141: 0 | G141: 1 | H141: 135
A142: 136 | F142: 0 | G142: 1 | H142: 136
A143: 137 | F143: 0 | G143: 1 | H143: 137
A144: 138 | F144: 0 | G144: 1 | H144: 138
A145: 139 | F145: 0 | G145: 1 | H145: 139
A146: 140 | F146: 0 | G146: 1 | H146: 140
A147: 141 | F147: 0 | G147: 1 | H147: 141
A148: 142 | F148: 0 | G148: 1 | H148: 142
A149: 143 | F149: 0 | G149: 1 | H149: 143
A150: 144 | F150: 0 | G150: 1 | H150: 144
A151: 145 | F151: 0 | G151: 1 | H151: 145
A152: 146 | F152: 0 | G152: 1 | H152: 146
A153: 147 | F153: 0 | G153: 1 | H153: 147
A154: 148 | F154: 0 | G154: 1 | H154: 148
A155: 149 | F155: 0 | G155: 1 | H155: 149
A156: 150 | F156: 0 | G156: 1 | H156: 150
A157: 151 | F157: 0 | G157: 1 | H157: 151
A158: 152 | F158: 0 | G158: 1 | H158: 152
A159: 153 | F159: 0 | G159: 1 | H159: 153
A160: 154 | F160: 0 | G160: 1 | H160: 154
A161: 155 | F161: 0 | G161: 1 | H161: 155
A162: 156 | F162: 0 | G162: 1 | H162: 156
A163: 157 | F163: 0 | G163: 1 | H163: 157
A164: 158 | F164: 0 | G164: 1 | H164: 158
A165: 159 | F165: 0 | G165: 1 | H165: 159
A166: 160 | F166: 0 | G166: 1 | H166: 160
A167: 161 | F167: 0 | G167: 1 | H167: 161
A168: 162 | F168: 0 | G168: 1 | H168: 162
A169: 163 | F169: 0 | G169: 1 | H169: 163
A170: 164 | F170: 0 | G170: 1 | H170: 164
A171: 165 | F171: 0 | G171: 1 | H171: 165
A172: 166 | F172: 0 | G172: 1 | H172: 166
A173: 167 | F173: 0 | G173: 1 | H173: 167
A174: 168 | F174: 0 | G174: 1 | H174: 168
A175: 169 | F175: 0 | G175: 1 | H175: 169
A176: 170 | F176: 0 | G176: 1 | H176: 170
A177: 171 | F177: 0 | G177: 1 | H177: 171
A178: 172 | F178: 0 | G178: 1 | H178: 172
A179: 173 | F179: 0 | G179: 1 | H179: 173
A180: 174 | F180: 0 | G180: 1 | H180: 174
A181: 175 | F181: 0 | G181: 1 | H181: 175
A182: 176 | F182: 0 | G182: 1 | H182: 176
A183: 177 | F183: 0 | G183: 1 | H183: 177
A184: 178 | F184: 0 | G184: 1 | H184: 178
A185: 179 | F185: 0 | G185: 1 | H185: 179
A186: 180 | F186: 0 | G186: 1 | H186: 180
A187: 181 | F187: 0 | G187: 1 | H187: 181
A188: 182 | F188: 0 | G188: 1 | H188: 182
A189: 183 | F189: 0 | G189: 1 | H189: 183
A190: 184 | F190: 0 | G190: 1 | H190: 184
A191: 185 | F191: 0 | G191: 1 | H191: 185
A192: 186 | F192: 0 | G192: 1 | H192: 186
A193: 187 | F193: 0 | G193: 1 | H193: 187
A194: 188 | F194: 0 | G194: 1 | H194: 188
A195: 189 | F195: 0 | G195: 1 | H195: 189
A196: 190 | F196: 0 | G196: 1 | H196: 190
A197: 191 | F197: 0 | G197: 1 | H197: 191
A198: 192 | F198: 0 | G198: 1 | H198: 192
A199: 193 | F199: 0 | G199: 1 | H199: 193
A200: 194 | F200: 0 | G200: 1 | H200: =A200 -> 194
A201: =1+A200 -> 195 | F201: 0 | G201: 1 | H201: 195
A202: 196 | F202: 0 | G202: 1 | H202: 196
A203: 197 | F203: 0 | G203: =IF($A$5>A203,0,IF(A203>$A$6,1,(F203+1)/$H$5+G202)) -> 1 | H203: 197
... 2806 more rows

Sheet Set C
A4: 2999 | B4: =[1]Drill!M12 -> â = `; ə = 1; ā = 2; ē = 3; ī = 4; ō = 5 | C4: =[1]Drill!Q12 -> ä = 6; ô = 7; ū = 8; ŭ = 9; û = 0 | H4: Range Sum
A5: =IF(ISNUMBER(Select!E7),IF(Select!E7>1,IF(Select!E7>A4,1,IF(Select!E8<=Select!E7,1,Select!E7)),1),1) -> 1 | B5: =Drill!M3 -> Word | C5: =Drill!M4 -> Meaning | D5: =Drill!M3&" Hints" -> Word Hints | E5: =Drill!M4&" Hints" -> Meaning Hints | F5: Delta | G5: Range Cum. | H5: =SUM(OFFSET(Adjusts4,A5-1,0,A6-A5+1,1))+A6-A5+1 -> 7 | M5: =Drill!M5 -> Character: | N5: =Drill!N5 -> 0 | O5: =Drill!O5 -> ə | P5: =Drill!P5 -> ā | Q5: =Drill!Q5 -> ē | R5: =Drill!R5 -> ī | S5: =Drill!S5 -> ō | T5: =Drill!T5 -> ä | U5: =Drill!U5 -> ô | V5: =Drill!V5 -> ū | W5: =Drill!W5 -> ŭ | X5: =Drill!X5 -> ə | Y5: =Drill!Y5 -> ā | Z5: =Drill!Z5 -> ē | AA5: =Drill!AA5 -> ī | AB5: =Drill!AB5 -> ō | AC5: =Drill!AC5 -> ä | AD5: =Drill!AD5 -> ô | AE5: =Drill!AE5 -> ū | AF5: =Drill!AF5 -> ŭ | AG5: =Drill!AG5 -> ə | AH5: =Drill!AH5 -> ā | AI5: =Drill!AI5 -> ē | AJ5: =Drill!AJ5 -> ī | AK5: =Drill!AK5 -> ō | AL5: =Drill!AL5 -> ä | AM5: =Drill!AM5 -> ô | AN5: =Drill!AN5 -> ū | AO5: =Drill!AO5 -> ŭ | AP5: =Drill!AP5 -> ə | AQ5: =Drill!AQ5 -> ā | AR5: =Drill!AR5 -> ē | AS5: =Drill!AS5 -> ī | AT5: =Drill!AT5 -> ō | AU5: =Drill!AU5 -> ä | AV5: =Drill!AV5 -> ô | AW5: =Drill!AW5 -> ū | AX5: =Drill!AX5 -> ŭ
A6: =IF(ISNUMBER(Select!E8),IF(Select!E8>A4,B6,IF(Select!E8<=A5,B6,IF(Select!E8>B6,B6,Select!E8))),B6) -> 7 | B6: =A4-COUNTBLANK(B7:B3005) -> 7 | F6: Add to 100% | G6: 0 | H6: 0 | M6: =Drill!M6 -> Code: | N6: =Drill!N6 -> 0 | O6: =Drill!O6 -> 1 | P6: =Drill!P6 -> 2 | Q6: =Drill!Q6 -> 3 | R6: =Drill!R6 -> 4 | S6: =Drill!S6 -> 5 | T6: =Drill!T6 -> 6 | U6: =Drill!U6 -> 7 | V6: =Drill!V6 -> 8 | W6: =Drill!W6 -> 9 | X6: =Drill!X6 -> 1 | Y6: =Drill!Y6 -> 2 | Z6: =Drill!Z6 -> 3 | AA6: =Drill!AA6 -> 4 | AB6: =Drill!AB6 -> 5 | AC6: =Drill!AC6 -> 6 | AD6: =Drill!AD6 -> 7 | AE6: =Drill!AE6 -> 8 | AF6: =Drill!AF6 -> 9 | AG6: =Drill!AG6 -> 1 | AH6: =Drill!AH6 -> 2 | AI6: =Drill!AI6 -> 3 | AJ6: =Drill!AJ6 -> 4 | AK6: =Drill!AK6 -> 5 | AL6: =Drill!AL6 -> 6 | AM6: =Drill!AM6 -> 7 | AN6: =Drill!AN6 -> 8 | AO6: =Drill!AO6 -> 9 | AP6: =Drill!AP6 -> 1 | AQ6: =Drill!AQ6 -> 2 | AR6: =Drill!AR6 -> 3 | AS6: =Drill!AS6 -> 4 | AT6: =Drill!AT6 -> 5 | AU6: =Drill!AU6 -> 6 | AV6: =Drill!AV6 -> 7 | AW6: =Drill!AW6 -> 8 | AX6: =Drill!AX6 -> 9
A7: =1 -> 1 | B7: garner | C7: n. 1. A place for storing grain; v.t. 2. To gather up and store; deposit in, or as in, a granary | F7: 0 | G7: =IF(OR($A$5>A7,A7>$A$6),0,(F7+1)/$H$5+G6) -> 0.1428571429 | H7: =A7 -> 1
A8: =1+A7 -> 2 | B8: cognitive characteristics | C8: Ability to logically combine, analyze, interpret and apply information symbols | F8: 0 | G8: =IF(OR($A$5>A8,A8>$A$6),0,(F8+1)/$H$5+G7) -> 0.2857142857 | H8: =A8 -> 2
A9: =1+A8 -> 3 | B9: tapis | C9: Tapestry, curtain, carpet: "Came on the --" is idiomatic for came under consideration or deliberation | F9: 0 | G9: =IF(OR($A$5>A9,A9>$A$6),0,(F9+1)/$H$5+G8) -> 0.4285714286 | H9: 3 | M9: =Drill!M9 -> Step trans: | N9: 1 | O9: =IF(ISERR(FIND(O6,N9)),N9,LEFT(N9,FIND(O6,N9)-1)&O5&MID(N9,FIND(O6,N9)+1,LEN(N9))) -> ə | P9: =IF(ISERR(FIND(P6,O9)),O9,LEFT(O9,FIND(P6,O9)-1)&P5&MID(O9,FIND(P6,O9)+1,LEN(O9))) -> ə | Q9: ə | R9: ə | S9: ə | T9: ə | U9: ə | V9: ə | W9: ə | X9: ə | Y9: ə | Z9: ə | AA9: ə | AB9: ə | AC9: ə | AD9: ə | AE9: ə | AF9: ə | AG9: ə | AH9: ə | AI9: ə | AJ9: ə | AK9: ə | AL9: ə | AM9: ə | AN9: ə | AO9: ə | AP9: ə | AQ9: ə | AR9: ə | AS9: ə | AT9: ə | AU9: ə | AV9: ə | AW9: ə | AX9: ə
A10: 4 | B10: premise | C10: To set forth beforehand as an introduction: "We might --..." | D10: as a verb | F10: 0 | G10: =IF($A$5>A10,0,IF(A10>$A$6,1,(F10+1)/$H$5+G9)) -> 0.5714285714 | H10: 4 | M10: =Drill!M10 -> W/char: | N10: =IF(N9=0,"",IF(AX9=0,"",AX9)) -> ə
A11: 5 | B11: pusillanimous | C11: Cowardly, faint-hearted (L. Very small part of the animus-spirit) | F11: 0 | G11: =IF($A$5>A11,0,IF(A11>$A$6,1,(F11+1)/$H$5+G10)) -> 0.7142857143 | H11: 5
A12: 6 | B12: lissome | C12: 1. Supple, limbre, flexible; 2. Nimble, agile | E12: lis' əm (also lissom) | F12: 0 | G12: 0.8571428571 | H12: 6
A13: 7 | B13: peroration | C13: The concluding part of a speech; emphaic recapitualation | F13: 0 | G13: 1 | H13: 7
A14: 8 | F14: 0 | G14: 1 | H14: 8
A15: 9 | F15: 0 | G15: 1 | H15: 9
A16: 10 | F16: 0 | G16: 1 | H16: 10
A17: 11 | F17: 0 | G17: 1 | H17: 11
A18: 12 | F18: 0 | G18: 1 | H18: 12
A19: 13 | F19: 0 | G19: 1 | H19: 13
A20: 14 | F20: 0 | G20: 1 | H20: 14
A21: 15 | F21: 0 | G21: 1 | H21: 15
A22: 16 | F22: 0 | G22: 1 | H22: 16
A23: 17 | F23: 0 | G23: 1 | H23: 17
A24: 18 | F24: 0 | G24: 1 | H24: 18
A25: 19 | F25: 0 | G25: 1 | H25: 19
A26: 20 | F26: 0 | G26: 1 | H26: 20
A27: 21 | F27: 0 | G27: 1 | H27: 21
A28: 22 | F28: 0 | G28: 1 | H28: 22
A29: 23 | F29: 0 | G29: 1 | H29: 23
A30: 24 | F30: 0 | G30: 1 | H30: 24
A31: 25 | F31: 0 | G31: 1 | H31: 25
A32: 26 | F32: 0 | G32: 1 | H32: 26
A33: 27 | F33: 0 | G33: 1 | H33: 27
A34: 28 | F34: 0 | G34: 1 | H34: 28
A35: 29 | F35: 0 | G35: 1 | H35: 29
A36: 30 | F36: 0 | G36: 1 | H36: 30
A37: 31 | F37: 0 | G37: 1 | H37: 31
A38: 32 | F38: 0 | G38: 1 | H38: 32
A39: 33 | F39: 0 | G39: 1 | H39: 33
A40: 34 | F40: 0 | G40: 1 | H40: 34
A41: 35 | F41: 0 | G41: 1 | H41: 35
A42: 36 | F42: 0 | G42: 1 | H42: 36
A43: 37 | F43: 0 | G43: 1 | H43: 37
A44: 38 | F44: 0 | G44: 1 | H44: 38
A45: 39 | F45: 0 | G45: 1 | H45: 39
A46: 40 | F46: 0 | G46: 1 | H46: 40
A47: 41 | F47: 0 | G47: 1 | H47: 41
A48: 42 | F48: 0 | G48: 1 | H48: 42
A49: 43 | F49: 0 | G49: 1 | H49: 43
A50: 44 | F50: 0 | G50: 1 | H50: 44
A51: 45 | F51: 0 | G51: 1 | H51: 45
A52: 46 | F52: 0 | G52: 1 | H52: 46
A53: 47 | F53: 0 | G53: 1 | H53: 47
A54: 48 | F54: 0 | G54: 1 | H54: 48
A55: 49 | F55: 0 | G55: 1 | H55: 49
A56: 50 | F56: 0 | G56: 1 | H56: 50
A57: 51 | F57: 0 | G57: 1 | H57: 51
A58: 52 | F58: 0 | G58: 1 | H58: 52
A59: 53 | F59: 0 | G59: 1 | H59: 53
A60: 54 | F60: 0 | G60: 1 | H60: 54
A61: 55 | F61: 0 | G61: 1 | H61: 55
A62: 56 | F62: 0 | G62: 1 | H62: 56
A63: 57 | F63: 0 | G63: 1 | H63: 57
A64: 58 | F64: 0 | G64: 1 | H64: 58
A65: 59 | F65: 0 | G65: 1 | H65: 59
A66: 60 | F66: 0 | G66: 1 | H66: 60
A67: 61 | F67: 0 | G67: 1 | H67: 61
A68: 62 | F68: 0 | G68: 1 | H68: 62
A69: 63 | F69: 0 | G69: 1 | H69: 63
A70: 64 | F70: 0 | G70: 1 | H70: 64
A71: 65 | F71: 0 | G71: 1 | H71: 65
A72: 66 | F72: 0 | G72: 1 | H72: =A72 -> 66
A73: =1+A72 -> 67 | F73: 0 | G73: 1 | H73: 67
A74: 68 | F74: 0 | G74: 1 | H74: 68
A75: 69 | F75: 0 | G75: =IF($A$5>A75,0,IF(A75>$A$6,1,(F75+1)/$H$5+G74)) -> 1 | H75: 69
A76: 70 | F76: 0 | G76: 1 | H76: 70
A77: 71 | F77: 0 | G77: 1 | H77: 71
A78: 72 | F78: 0 | G78: 1 | H78: 72
A79: 73 | F79: 0 | G79: 1 | H79: 73
A80: 74 | F80: 0 | G80: 1 | H80: 74
A81: 75 | F81: 0 | G81: 1 | H81: 75
A82: 76 | F82: 0 | G82: 1 | H82: 76
A83: 77 | F83: 0 | G83: 1 | H83: 77
A84: 78 | F84: 0 | G84: 1 | H84: 78
A85: 79 | F85: 0 | G85: 1 | H85: 79
A86: 80 | F86: 0 | G86: 1 | H86: 80
A87: 81 | F87: 0 | G87: 1 | H87: 81
A88: 82 | F88: 0 | G88: 1 | H88: 82
A89: 83 | F89: 0 | G89: 1 | H89: 83
A90: 84 | F90: 0 | G90: 1 | H90: 84
A91: 85 | F91: 0 | G91: 1 | H91: 85
A92: 86 | F92: 0 | G92: 1 | H92: 86
A93: 87 | F93: 0 | G93: 1 | H93: 87
A94: 88 | F94: 0 | G94: 1 | H94: 88
A95: 89 | F95: 0 | G95: 1 | H95: 89
A96: 90 | F96: 0 | G96: 1 | H96: 90
A97: 91 | F97: 0 | G97: 1 | H97: 91
A98: 92 | F98: 0 | G98: 1 | H98: 92
A99: 93 | F99: 0 | G99: 1 | H99: 93
A100: 94 | F100: 0 | G100: 1 | H100: 94
A101: 95 | F101: 0 | G101: 1 | H101: 95
A102: 96 | F102: 0 | G102: 1 | H102: 96
A103: 97 | F103: 0 | G103: 1 | H103: 97
A104: 98 | F104: 0 | G104: 1 | H104: 98
A105: 99 | F105: 0 | G105: 1 | H105: 99
A106: 100 | F106: 0 | G106: 1 | H106: 100
A107: 101 | F107: 0 | G107: 1 | H107: 101
A108: 102 | F108: 0 | G108: 1 | H108: 102
A109: 103 | F109: 0 | G109: 1 | H109: 103
A110: 104 | F110: 0 | G110: 1 | H110: 104
A111: 105 | F111: 0 | G111: 1 | H111: 105
A112: 106 | F112: 0 | G112: 1 | H112: 106
A113: 107 | F113: 0 | G113: 1 | H113: 107
A114: 108 | F114: 0 | G114: 1 | H114: 108
A115: 109 | F115: 0 | G115: 1 | H115: 109
A116: 110 | F116: 0 | G116: 1 | H116: 110
A117: 111 | F117: 0 | G117: 1 | H117: 111
A118: 112 | F118: 0 | G118: 1 | H118: 112
A119: 113 | F119: 0 | G119: 1 | H119: 113
A120: 114 | F120: 0 | G120: 1 | H120: 114
A121: 115 | F121: 0 | G121: 1 | H121: 115
A122: 116 | F122: 0 | G122: 1 | H122: 116
A123: 117 | F123: 0 | G123: 1 | H123: 117
A124: 118 | F124: 0 | G124: 1 | H124: 118
A125: 119 | F125: 0 | G125: 1 | H125: 119
A126: 120 | F126: 0 | G126: 1 | H126: 120
A127: 121 | F127: 0 | G127: 1 | H127: 121
A128: 122 | F128: 0 | G128: 1 | H128: 122
A129: 123 | F129: 0 | G129: 1 | H129: 123
A130: 124 | F130: 0 | G130: 1 | H130: 124
A131: 125 | F131: 0 | G131: 1 | H131: 125
A132: 126 | F132: 0 | G132: 1 | H132: 126
A133: 127 | F133: 0 | G133: 1 | H133: 127
A134: 128 | F134: 0 | G134: 1 | H134: 128
A135: 129 | F135: 0 | G135: 1 | H135: 129
A136: 130 | F136: 0 | G136: 1 | H136: =A136 -> 130
A137: =1+A136 -> 131 | F137: 0 | G137: 1 | H137: 131
A138: 132 | F138: 0 | G138: 1 | H138: 132
A139: 133 | F139: 0 | G139: =IF($A$5>A139,0,IF(A139>$A$6,1,(F139+1)/$H$5+G138)) -> 1 | H139: 133
A140: 134 | F140: 0 | G140: 1 | H140: 134
A141: 135 | F141: 0 | G141: 1 | H141: 135
A142: 136 | F142: 0 | G142: 1 | H142: 136
A143: 137 | F143: 0 | G143: 1 | H143: 137
A144: 138 | F144: 0 | G144: 1 | H144: 138
A145: 139 | F145: 0 | G145: 1 | H145: 139
A146: 140 | F146: 0 | G146: 1 | H146: 140
A147: 141 | F147: 0 | G147: 1 | H147: 141
A148: 142 | F148: 0 | G148: 1 | H148: 142
A149: 143 | F149: 0 | G149: 1 | H149: 143
A150: 144 | F150: 0 | G150: 1 | H150: 144
A151: 145 | F151: 0 | G151: 1 | H151: 145
A152: 146 | F152: 0 | G152: 1 | H152: 146
A153: 147 | F153: 0 | G153: 1 | H153: 147
A154: 148 | F154: 0 | G154: 1 | H154: 148
A155: 149 | F155: 0 | G155: 1 | H155: 149
A156: 150 | F156: 0 | G156: 1 | H156: 150
A157: 151 | F157: 0 | G157: 1 | H157: 151
A158: 152 | F158: 0 | G158: 1 | H158: 152
A159: 153 | F159: 0 | G159: 1 | H159: 153
A160: 154 | F160: 0 | G160: 1 | H160: 154
A161: 155 | F161: 0 | G161: 1 | H161: 155
A162: 156 | F162: 0 | G162: 1 | H162: 156
A163: 157 | F163: 0 | G163: 1 | H163: 157
A164: 158 | F164: 0 | G164: 1 | H164: 158
A165: 159 | F165: 0 | G165: 1 | H165: 159
A166: 160 | F166: 0 | G166: 1 | H166: 160
A167: 161 | F167: 0 | G167: 1 | H167: 161
A168: 162 | F168: 0 | G168: 1 | H168: 162
A169: 163 | F169: 0 | G169: 1 | H169: 163
A170: 164 | F170: 0 | G170: 1 | H170: 164
A171: 165 | F171: 0 | G171: 1 | H171: 165
A172: 166 | F172: 0 | G172: 1 | H172: 166
A173: 167 | F173: 0 | G173: 1 | H173: 167
A174: 168 | F174: 0 | G174: 1 | H174: 168
A175: 169 | F175: 0 | G175: 1 | H175: 169
A176: 170 | F176: 0 | G176: 1 | H176: 170
A177: 171 | F177: 0 | G177: 1 | H177: 171
A178: 172 | F178: 0 | G178: 1 | H178: 172
A179: 173 | F179: 0 | G179: 1 | H179: 173
A180: 174 | F180: 0 | G180: 1 | H180: 174
A181: 175 | F181: 0 | G181: 1 | H181: 175
A182: 176 | F182: 0 | G182: 1 | H182: 176
A183: 177 | F183: 0 | G183: 1 | H183: 177
A184: 178 | F184: 0 | G184: 1 | H184: 178
A185: 179 | F185: 0 | G185: 1 | H185: 179
A186: 180 | F186: 0 | G186: 1 | H186: 180
A187: 181 | F187: 0 | G187: 1 | H187: 181
A188: 182 | F188: 0 | G188: 1 | H188: 182
A189: 183 | F189: 0 | G189: 1 | H189: 183
A190: 184 | F190: 0 | G190: 1 | H190: 184
A191: 185 | F191: 0 | G191: 1 | H191: 185
A192: 186 | F192: 0 | G192: 1 | H192: 186
A193: 187 | F193: 0 | G193: 1 | H193: 187
A194: 188 | F194: 0 | G194: 1 | H194: 188
A195: 189 | F195: 0 | G195: 1 | H195: 189
A196: 190 | F196: 0 | G196: 1 | H196: 190
A197: 191 | F197: 0 | G197: 1 | H197: 191
A198: 192 | F198: 0 | G198: 1 | H198: 192
A199: 193 | F199: 0 | G199: 1 | H199: 193
A200: 194 | F200: 0 | G200: 1 | H200: =A200 -> 194
A201: =1+A200 -> 195 | F201: 0 | G201: 1 | H201: 195
A202: 196 | F202: 0 | G202: 1 | H202: 196
A203: 197 | F203: 0 | G203: =IF($A$5>A203,0,IF(A203>$A$6,1,(F203+1)/$H$5+G202)) -> 1 | H203: 197
... 2836 more rows
